Workbook

Sheet Cover Page
N2: Version 20.1
B8: Add photo
N13: Notes:
N14: This template may require adjustments by individual operators to meet specific reporting requirements as defined in the site Permit(s)
B29: Annual Performance Report 2021
B31: Permit EPR/JP3135DK
B33: Kemsley Generating Station
B35: K3 CHP
B37: enfinium K3 CHP Operations Limited
B39: Year: | C39: 2021
B41: Address: | C41: Barge Way, Sittingbourne, Kent, ME10 2FP
B43: Tel: | C43: 01795 685740
B45: Email: | C45: www.wtikemsley.co.uk
B47: Prepared by: | C47: Michelle Dunbar | F47: Position: | G47: Environmental Manager
B49: Approved by: | C49: Stuart Kirk | F49: Position: | G49: Plant Manager
B51: Version: | C51: 1
B53: Issue Date: | C53: 25.01.2022

Sheet Contents
A1: =+'Cover Page'!$B$29 -> Annual Performance Report 2021 | E1: =+'Cover Page'!$B$33 -> Kemsley Generating Station
A3: Contents | K3: Notes:
A4: Section | B4: Subject | H4: Page | K4: Section references and Page nos. to be inserted
B5: Facility Information | H5: 3 | K5: Sections and Subjects may require adjustment by individual operators to meet specific reporting requirements as defined in the sites Permit(s)
B6: Operational Data | H6: 4
B7: Operational Summary | H7: 5
B8: Performance Form 1 | H8: 7
B9: Energy Form 1 | H9: 8
B10: Permit Compliance | H10: 9
B11: Improvements | H11: 10
B12: Public Liasion | H12: 11
B13: Residue Quality | H13: 12
B14: Emissions to Water | H14: 13
B15: Emissions to Air (periodically monitored) | H15: 14
B16: Emissions to Air (continuously monitored) | H16: 15
B17: Hydrogen Chloride emissions | H17: 16
B18: Sulphur Dioxdie emsissions | H18: 17
B19: Oxides of Nitrogen emissions | H19: 18
B20: Total Organic Carbon emissions | H20: 19
B21: Particulate Matter emissions | H21: 20
B22: Carbon Monoxide emissions - 10 minute average | H22: 21
B23: Ammonia emissions | H23: 22
B24: N2O emissions | H24: 23
A26: Version Control
A27: Section | B27: Information | H27: Date
A34: Distribution
A35: Copy | B35: Name, Role | H35: No.
A44: This report is required under the Industrial Emissions Directive’s Article 55(2) requirements on reporting and public information on waste incineration plants and co-incineration plants, which require the operator to produce an annual report on the functioning and monitoring of the plant and make it available to the public.
G48: Environmental Manager
C54: 21.01.2022

Sheet Facility Info
A1: =+'Cover Page'!$B$29 -> Annual Performance Report 2021 | E1: =+'Cover Page'!$B$33 -> Kemsley Generating Station
A3: Plant Description and Design | K3: Notes:
A5: The Kemsley Energy Recovery Facility (ERF) recovers value (primarily in the form of energy, but also recycled materials in the form of incinerator bottom ash aggregate (IBAA) and metals recovered from the incinerator bottom ash (IBA) from up to 657,000 tonnes per annum (tpa) residual waste in two incineration lines. The imported waste is primarily commercial and industrial (C&I) waste and residual Municipal Solid Waste (MSW), collected by private waste management companies. The Installation forms part of the Kemsley Paper Mill installation which currently comprises the DS Smith Kemsley Paper Mill and the E.On combined heat and power facility. It is located at grid reference 592170,166640 which is to the east of Kemsley, 3 km north of Sittingbourne and 2.5 km south east of Iwade. Planning permission for the site was granted in 2012 and construction of the facility has been completed. Some landscaping works remain, along with correction of various minor snags and defects. The existing permit (Permit number EPR/JP3135DK) allows the facility to accept municipal, industrial and commercial waste and undertake the following activities: • receipt and storage of waste pending processing; • electricity and steam generation; and • disposal of waste arising (incinerator bottom ash (IBA) and air pollution control residues (APCr)). | K5: Include summary of plant design, design capacity, no. of combustion lines, electrical and heat capacity and any other general information that descibes the facility, its location and purpose
A20: Summary of Operational Processes and Procedures
A22: The facility processes waste using air cooled, moving grate technology. The energy recovered from the combustion of waste is utilised (in the form of high-pressure steam) to produce electrical power through a steam turbine and generator unit. The facility has combined heat and power (CHP) capability and supplies the adjacent DS Smith paper mill with steam. The combustion of waste releases flue gases which are treated in order to comply with the requirements of the Industrial Emissions Directive and the permit. In addition to primary and secondary air injection, additional support in combustion is provided through tertiary air injection or flue gas recirculation. Urea is added at various stages of the boiler’s combustion chamber (first pass) to reduce nitrogen oxides (NOx). Hydrated Lime and powdered activated carbon (PAC) are used within the dry flue gas treatment (FGT) system. The lime reduces acid gas emissions while the activated carbon reduces mercury and the formation of dioxins/furans. The by-products from both reactions are captured in the fabric filter as Air Pollution Control Residues (APCR). The facility is designed to export approximately 45MW of electricity to the grid, and 55 MWth of steam to the mill - when the paper mill is running at capacity. | K22: Include summary of key processes and procedures such as (but not limited to); waste reception, control rooms, grate, bed and bolier, energy & heat generation, cooling systems, residue management, emission controls, health and safety systems, maintenance

Sheet Operational Data
A1: =+'Cover Page'!$B$29 -> Annual Performance Report 2021 | E1: =+'Cover Page'!$B$33 -> Kemsley Generating Station
A3: Operational Data | K3: Notes:
A4: Plant Size | B4: 657000 | D4: tonnes pa | E4: 55 | F4: MWth | G4: 45 | H4: MWe | K4: * - RDF to include SRF
A5: No. of combustion lines | B5: 2 | D5: No. of Turbines: | F5: 1 | K5: ** - CHP plants only
K6: 2020 updates include; heat in MWh, water in Litres, NCV in MJ/kg
A7: Waste types received | B7: Unit | C7: Q1 | D7: Q2 | E7: Q3 | F7: Q4 | G7: Year Total | H7: %
A8: Household / Local Authority | B8: tonnes | C8: 53904.86 | D8: 58799.62 | E8: 82041.34 | F8: 83783.08 | G8: =SUM(C8:F8) -> 278528.9 | H8: =IF(G8>0,G8/$G$18,"-") -> 0.5284884139 | K8: Availabiity Definition: 'the availability of a line is to be calculated by the number of hours the line reported Continuously Monitored emission levels to the Regulator through the calendar year divided by the total number of hours in that year. The overall plant availability is calculated as the Mean of all lines in the plant. For clarity this includes periods of Other Than Normal Operating Conditions (OTNOC) and abnormal operation.' Rationale: The primary function of an Energy from Waste facility is the disposal of waste. It follows therefore that the availability of a plant is determined by the period of time a facility spends undertaking this activity.
A9: Commercial & Industrial | C9: 67198.26 | D9: 20844.94 | E9: 21042.64 | F9: 19539.24 | G9: =SUM(C9:F9) -> 128625.08 | H9: 0.244056773
A10: Hazardous | G10: 0 | H10: -
A11: Clinical | G11: 0 | H11: -
A12: Waste wood (biomass) | G12: 0 | H12: -
A13: Refuse Derived Fuel * - H'hold/LA | G13: =SUM(C13:F13) -> 0 | H13: -
A14: Refuse Derived Fuel * - C&I | C14: 20315.12 | D14: 21981.62 | E14: 42125.66 | F14: 35452.96 | G14: 119875.36 | H14: 0.227454813
A15: Other [Please specify] | G15: 0 | H15: -
A16: Other [Please specify]
A17: Other [Please specify]
A18: Total waste received | C18: =SUM(C8:C17) -> 141418.24 | D18: =SUM(D8:D17) -> 101626.18 | E18: =SUM(E8:E17) -> 145209.64 | F18: =SUM(F8:F17) -> 138775.28 | G18: =SUM(C18:F18) -> 527029.34 | H18: =IF(G18>0,G18/$G$18,"-") -> 1
A19: Rejected Waste | C19: 0 | D19: 0 | E19: 0 | F19: 0 | G19: =SUM(C19:F19) -> 0 | H19: =IF(G19>0,G19/$G$18,"-") -> -
A20: Unprocessed waste transferred out
A21: Total waste combusted | C21: 138371.9108 | D21: 105574.7087 | E21: 144809.3898 | F21: 137995.4023 | G21: =SUM(C21:F21) -> 526751.4115 | H21: =IF(G21>0,G21/$G$21,"-") -> 1
A23: Energy Useage / Export | B23: Unit | C23: Q1 | D23: Q2 | E23: Q3 | F23: Q4 | G23: Year Total | H23: KWh/te
A24: Power Generated | B24: MWh | C24: 95909.52272 | D24: 79601.37857 | E24: 116291 | F24: 106517 | G24: =SUM(C24:F24) -> 398318.9013 | H24: =IF(G24>0,G24*1000/G21,"-") -> 756.1800359
A25: Power Exported | C25: 85338 | D25: 71259 | E25: 104112 | F25: 95116 | G25: =SUM(C25:F25) -> 355825 | H25: =IF(G25>0,G25*1000/G21,"-") -> 675.5083939
A26: Power Used on site | C26: =C24-C25+C27 -> 11146.52272 | D26: =D24-D25+D27 -> 9371.378569 | E26: 12285 | F26: 11533 | G26: =SUM(C26:F26) -> 44335.90129 | H26: =IF(G26>0,G26*1000/G21,"-") -> 84.16854766
A27: Power Imported | C27: 575 | D27: 1029 | E27: 106 | F27: 132 | G27: 1842 | H27: =IF(G27>0,G27*1000/G21,"-") -> 3.496905675
A28: Parasitic Load | B28: % | C28: 0.137 | D28: 0.134 | E28: 0.106 | F28: 0.1196 | G28: =IF(G24>0,1-G25/(G24+G27),"-") -> 0.1107951855
A29: Thermal Energy Produced ** | B29: MWh | C29: 401597.0606 | D29: 306209.8228 | E29: 418154.0487 | F29: 400867.4469 | G29: =SUM(C29:F29) -> 1526828.379 | H29: =IF(G29>0,G29*1000/G21,"-") -> 2898.574822
A30: Thermal Energy Exported ** | C30: 67148.84675 | D30: 37823.02353 | E30: 61574.74862 | F30: 68139.53511 | G30: 234686.154 | H30: =IF(G30>0,G30*1000/G21,"-") -> 445.5349314
A31: R1 value | C31: 1.03 | G31: Design / Operational
A33: Waste Disposal & Recovery | B33: Unit | C33: Q1 | D33: Q2 | E33: Q3 | F33: Q4 | G33: Year Total | H33: % inputs
A34: APC Residues - produced | B34: tonnes | C34: 4222.32 | D34: 3342.66 | E34: 4096.56 | F34: 4002.44 | G34: =SUM(C34:F34) -> 15663.98 | H34: =IF(G34>0,G34/$G$21,"-") -> 0.02973694927
A35: IBA - produced | C35: 30479.316 | D35: 23553.68 | E35: 31526.55 | F35: 29485.68 | G35: 115045.226 | H35: =IF(G35>0,G35/$G$21,"-") -> 0.2184051594
A36: Metals recycling | C36: 282.56 | D36: 239.4 | E36: 225.1 | F36: 343.9 | G36: =SUM(C36:F36) -> 1090.96 | H36: =IF(G36>0,G36/$G$21,"-") -> 0.00207110978
A37: Water - 16 10 02 | C37: 3236 | D37: 1266.5 | E37: 546 | F37: 104 | G37: =SUM(C37:F37) -> 5152.5 | H37: =IF(G37>0,G37/$G$21,"-") -> 0.009781653902
A38: 13 05 07 | D38: 20 | E38: 0 | F38: 0 | G38: 20 | H38: =IF(G38>0,G38/$G$21,"-") -> 3.79685741e-05
A39: 15 01 06 | E39: 0.19 | F39: 0.64 | G39: 0.83 | H39: =IF(G39>0,G39/$G$21,"-") -> 1.575695825e-06
A40: 17 02 01 | E40: 0.68 | F40: 1.12 | G40: 1.8 | H40: 3.417171669e-06
A41: 20 03 01 | C41: 0 | D41: 0 | E41: 0.67 | F41: 0 | G41: 0.67 | H41: =IF(G41>0,G41/$G$18,"-") -> 1.271276472e-06
A43: Raw Material Usage | B43: Unit | C43: Q1 | D43: Q2 | E43: Q3 | F43: Q4 | G43: Year Total | H43: kg or Ltr /te
A44: Mains Water | B44: ltrs | C44: 5354000 | D44: 4206000 | E44: 3113000 | F44: 2976000 | G44: =SUM(C44:F44) -> 15649000 | H44: =IF(G44>0,G44/$G$21,"-") -> 29.7085108
A45: Other Water | B45: ltrs | G45: 0 | H45: =IF(G45>0,G45/$G$21,"-") -> -
A46: Ammonia | B46: kgs | G46: 0 | H46: =IF(G46>0,G46/$G$21,"-") -> -
A47: Urea | B47: kgs | C47: 136646 | D47: 122346.5486 | E47: 132773 | F47: 120197 | G47: 511962.5486 | H47: =IF(G47>0,G47/$G$21,"-") -> 0.9719243981
A48: Activated Carbon | B48: kgs | C48: 45183 | D48: 34075.0176 | E48: 46333 | F48: 43598 | G48: 169189.0176 | H48: 0.3211932876
A49: Lime / hydrated lime | B49: kgs | C49: =1963*1000 -> 1963000 | D49: =1643*1000 -> 1643000 | E49: =1927*1000 -> 1927000 | F49: =1901*1000 -> 1901000 | G49: 7434000 | H49: 14.11291899
A50: Fuel oil | B50: ltrs | C50: 668741 | D50: 575975.6875 | E50: 186680 | F50: 221095.2734 | G50: 1652491.961 | H50: 3.137138173
A51: Gas | B51: cf | C51: 0 | D51: 0 | E51: 0 | F51: 0 | G51: 0
A52: Other | C52: 0 | D52: 0 | E52: 0 | F52: 0 | G52: 0
C53: 21.01.2022
A54: Summary | B54: Line/Unit | C54: Q1 | D54: Q2 | E54: Q3 | F54: Q4 | G54: Year Total | J54: Hrs in year *
A55: Availability of waste combustion by line, hrs | B55: 1 | C55: 2047 | D55: 1630 | E55: 1991 | F55: 1965 | G55: =SUM(C55:F55) -> 7633 | H55: =G55/J55 -> 0.871347032 | J55: 8760
B56: 2 | C56: 1814 | D56: 1368 | E56: 2185 | F56: 2036 | G56: 7403 | H56: =G56/J55 -> 0.8450913242
B57: 3 | G57: 0 | H57: x %
B58: 4 | G58: 0 | H58: x %
B59: 5 | G59: =SUM(C59:F59) -> 0 | H59: x %
A60: Overall Availability, mean avg. of all lines, hrs | G60: =AVERAGE(G55:G56) -> 7518 | H60: =G60/J55 -> 0.8582191781
A61: Hours of turbine operations, hrs | B61: 1 | C61: 2041 | D61: 1601 | E61: 2179 | F61: 2159 | G61: 7980 | H61: =G61/J55 -> 0.9109589041
A62: Hours of turbine operations, hrs | B62: 2
A63: Hours of heat / steam export | C63: 2147 | D63: 1640 | E63: 2162 | F63: 2088 | G63: 8037 | H63: =IF(B63>0,G62/J55,"n/a") -> n/a
A64: Net Calorific Value of waste | B64: MJ/kg | C64: 10534.85031 | D64: 10787.08491 | E64: 10594.2658 | F64: 10623.40228 | G64: =AVERAGE(C64:F64) -> 10634.90083 | H64: -
A65: Abnormal Events | B65: qty. | C65: 0 | D65: 1 | E65: 0 | F65: 0 | G65: 0 | H65: =IF(G65>0,"yes","no") -> no
A66: Abnormal operation | B66: hours | C66: 0 | D66: 0.5 | E66: 0 | F66: 0 | G66: 0 | H66: =+(G66)/J55 -> 0
A67: Permit (ELV) Breaches | B67: qty. | D67: 1 | G67: 1 | H67: =IF(G67>0,"yes","no") -> yes

Sheet Operational Summary
A1: =+'Cover Page'!$B$29 -> Annual Performance Report 2021 | E1: =+'Cover Page'!$B$33 -> Kemsley Generating Station
A3: Summary of Plant Operations and Maintenance during the reporting year | K3: Notes:
A5: Following commercial operations of the facility in July 2020 each of the two boiler plants have undergone a thorough examination and maintenance overhaul, in line with the original equipment manufacturers recommendations and PSSR Regulations. Legacy defects continue to be managed from the construction phase, all of which have a resoution date of July 2022 . Detailed PPM (planned preventative maintenance) activities have been produced and managed within the companies CMMS (Computerised Maintenance management System), which comply with the original equipment manufacturers recommendations for preventative maintenance. This will ensure the plant is operated at high levels of availability and within environmental limits. Operational routines have been developed to ensure safe and Environmentally compliant operation of the facility that include, but not limited to: Fire detection and suppression systems, receipt of consumable materials for the abatement and treatment of process effluent and gasses, safe start-up and shut-down of the boiler plants, emergency response plans and Environmental compliance training. A management of change (MoC) process has been established since commercial operation that evaluates and manages upgrades to the facilities installed equipment.MoC projects currently underway are: 1. Continuous Emissions Measurement System (CEMS) commenced the concept phase in 2020 and will be completed in Q1 2022 . When complete, the installation of a fourth CEM unit will enable enfinium Kemsley to have 100% redundancy on the CEMS for both boiler plants. 2. Modifications to the ash discharging system which will reduce the requirement to interrupt the operating boiler following blockages within this system. Completion of first boiler Q2 2022. | K5: Include summary of key operational and/or maintenance activity undertaken in the year, such as any major component upgrades and/or replacements
A20: Summary of Residue Handling for the reporting year
A22: APCr is transferred to Augean (Peterborough) where it is treated and landfilled. enfinium continue to investigate opportunities for recycling of this material. IBA is transferred to Fortis IBA (Andover), where it is recycled. Metals are removed and IBAA is produced for use in construction. The IBA is sampled and analysis undertaken twice monthly to assess its suitability for reporocessing at Fortis. Core hazard properties are assessed, and as from July 2021, quarterly samples were analysed as per compliance requirements of the permit. APCR samples are also taken quarterly in line with permit compliance requirements. IBA has consistently proven to be non-hazardous, with no failures during 2021. | K22: Include in here a summary of residue handling regimes and destinations
G47: Environmental Manager
C53: 21.01.2022

Sheet Perf. Form 1
A1: =+'Cover Page'!C39 -> 2021 | B1: Annual Reporting Performance Form 1
A3: =+'Cover Page'!B31 -> Permit EPR/JP3135DK | F3: Operator: | G3: =+'Cover Page'!B37:I37 -> 0
A4: Facility: | B4: =+'Cover Page'!B33:I33 -> Kemsley Generating Station | F4: Form: | G4: Performance 1
A6: Reporting Period from: | D6: January | F6: to: | G6: December
A8: =+A1 -> 2021 | B8: Annual Reporting of Waste Disposal and Recovery
A9: Waste Description | C9: Disposal Route(s) | E9: Disposal Tonnes | G9: Recovery Tonnes | I9: % / tonne of waste incinerated
A10: 1) Hazardous Wastes
A11: APC Residues | C11: D09 | E11: ='Operational Data'!G34 -> 15663.98 | G11: 0 | I11: =IF((E11+G11)>0,(E11+G11)/'Operational Data'!$G$21, "-") -> 0.02973694927
A12: IBA | E12: 0 | G12: 0 | I12: 0
A13: 19 01 11 | C13: D05 | E13: 25 | I13: =IF((E13+G13)>0,(E13+G13)/'Operational Data'!$G$21, "-") -> 4.746071762e-05
A14: 13 05 07 | C14: D09 | E14: 20 | I14: =IF((E14+G14)>0,(E14+G14)/'Operational Data'!$G$21, "-") -> 3.79685741e-05
A15: Total Hazardous Waste | E15: =SUM(E11:F14) -> 15708.98 | G15: =SUM(G11:H14) -> 0 | I15: =IF((E15+G15)>0,(E15+G15)/'Operational Data'!$G$21, "-") -> 0.02982237856
A17: 2) Non-Hazardous Wastes
A18: IBA | C18: R5 | G18: ='Operational Data'!G35 -> 115045.226 | I18: =IF((E18+G18)>0,(E18+G18)/'Operational Data'!$G$21, "-") -> 0.2184051594
A19: Ferrous Metal | C19: R4 | G19: ='Operational Data'!G36 -> 1090.96 | I19: =IF((E19+G19)>0,(E19+G19)/'Operational Data'!$G$21, "-") -> 0.00207110978
A20: Process Water | C20: D09 | E20: ='Operational Data'!G37 -> 5152.5 | I20: =IF((E20+G20)>0,(E20+G20)/'Operational Data'!$G$21, "-") -> 0.009781653902
A21: 15 01 06 | C21: R5 | G21: 0.83 | I21: =IF((E21+G21)>0,(E21+G21)/'Operational Data'!$G$21, "-") -> 1.575695825e-06
A22: 17 02 01 | C22: R3 | G22: 1.8 | I22: =IF((E22+G22)>0,(E22+G22)/'Operational Data'!$G$21, "-") -> 3.417171669e-06
A23: 20 03 01 | C23: R1 | G23: 0.67 | I23: =IF((E23+G23)>0,(E23+G23)/'Operational Data'!$G$21, "-") -> 1.271947232e-06
A24: Total Non-Hazardous Waste | E24: =SUM(E18:F23) -> 5152.5 | G24: =SUM(G18:H23) -> 116139.486 | I24: =IF((E24+G24)>0,(E24+G24)/'Operational Data'!$G$21, "-") -> 0.2302641879
A25: TOTAL WASTE | E25: =+E24+E15 -> 20861.48 | G25: =+G24+G15 -> 116139.486 | I25: =IF((E25+G25)>0,(E25+G25)/'Operational Data'!$G$21, "-") -> 0.2600865665
A27: Operator’s comments :
A32: =+A1 -> 2021 | B32: Annual Reporting of Water and Other Raw Material Usage
A33: Raw Material | E33: Usage | G33: Unit | H33: Specific Useage | J33: Unit
A34: Mains Water | E34: =+'Operational Data'!G44/1000 -> 15649 | G34: m3 | H34: =IF(E34>0,E34/'Operational Data'!$G$21,"-") -> 0.0297085108 | J34: m3/te
A35: Total Water | E35: =+'Operational Data'!G44/1000 -> 15649 | G35: m3 | H35: =IF(E35>0,E35/'Operational Data'!$G$21,"-") -> 0.0297085108 | J35: m3/te
A36: Urea / Ammonia | E36: =+'Operational Data'!G47 -> 511962.5486 | G36: kg | H36: =IF(E36>0,E36/'Operational Data'!$G$21,"-") -> 0.9719243981 | J36: kg/te
A37: Activated Carbon | E37: =+'Operational Data'!G48 -> 169189.0176 | G37: kg | H37: =IF(E37>0,E37/'Operational Data'!$G$21,"-") -> 0.3211932876 | J37: kg/te
A38: Lime / hydrated lime / Sodium Bicarb. | E38: =+'Operational Data'!G49 -> 7434000 | G38: kg | H38: =IF(E38>0,E38/'Operational Data'!$G$21,"-") -> 14.11291899 | J38: kg/te
A40: Operator’s comments :
A44: =+A32 -> 2021 | B44: Annual Reporting of other performance indicators
A45: Parameter | C45: Results by Line
C46: A1 | D46: A2 | E46: A3 | F46: A4 | G46: A5 | I46: Turbine 1 | J46: Turbine 2
A47: Operating hours for the year, hours | C47: ='Operational Data'!G55 -> 7633 | D47: ='Operational Data'!G56 -> 7403 | I47: ='Operational Data'!G61 -> 7980
A48: Number of periods of abnormal operation, qty. | C48: 0 | D48: 0.5
A49: Cumulative hours of abnormal operation for this year, hours | C49: 0 | D49: 0.5
A51: Operator’s comments :
A55: Signed: | G55: Date:

Sheet Energy Form 1
A1: =+'Cover Page'!C39 -> 2021 | B1: Annual Reporting of Energy Usage/Export
A3: =+'Cover Page'!B31 -> Permit EPR/JP3135DK | F3: Operator: | G3: =+'Cover Page'!B37:I37 -> 0
A5: Facility: | B5: =+'Cover Page'!B33:I33 -> Kemsley Generating Station | F5: Form: | G5: Energy 1
A7: Reporting Period from: | D7: January | F7: to: | G7: =+'Perf. Form 1'!G6:H6 -> December
A9: Energy Source | D9: Energy Usage | F9: Unit | G9: Specific Useage (KWh/tonne incinerated
A10: Electricity Produced | D10: =+'Operational Data'!G24 -> 398318.9013 | F10: MWh | G10: =+'Operational Data'!H24 -> 756.1800359
A11: Electricity Imported | D11: =+'Operational Data'!G27 -> 1842 | F11: MWh | G11: =+'Operational Data'!H27 -> 3.496905675
A12: Electricity Exported | D12: =+'Operational Data'!G25 -> 355825 | F12: MWh | G12: =+'Operational Data'!H25 -> 675.5083939
A13: Gas Oil | D13: ='Operational Data'!G50*0.82/1000 -> 1355.043408 | F13: tonnes
A14: Steam/hot water exported | D14: =+'Operational Data'!G30 -> 234686.154 | F14: GWh | G14: =+'Operational Data'!H30 -> 445.5349314
A18: Operator’s comments :
A29: Signed: | G29: Date:
G47: Environmental Manager
C53: 21.01.2022

Sheet Permit Compliance
A1: =+'Cover Page'!$B$29 -> Annual Performance Report 2021 | C1: =+'Cover Page'!$B$33 -> Kemsley Generating Station
A3: Summary of Permit Compliance
A5: Compliance with permit limits for continuously monitored pollutants
A7: The plant met its emission limits as shown in the table below:
A8: Substance | C8: % time compliant during operation | G8: Notes:
C9: Half-hourly | D9: Daily | G9: Report to 2 decimal places, i.e. xx.xx% Please provide a brief summary of each notification or non-compliance in the table (rather than just referring to notifications that were sent to the Regulator).
A10: Particulates | C10: 1 | D10: 1
A11: Oxides of nitrogen | C11: 1 | D11: 1
A12: Sulphur dioxide | C12: 0.9999 | D12: 1
A13: Carbon monoxide | C13: 1 | D13: 1
A14: Total organic carbon | C14: 1 | D14: 1
A15: Hydrogen chloride | C15: 1 | D15: 1
A16: Hydrogen fluoride | C16: 1 | D16: 1
A19: Summary of any notifications or non-compliances under the permit
A20: Date | B20: Summary of notification or non-compliance [including Line/Reference] | C20: Reason | D20: Measures taken to prevent reoccurrence
A21: 2021-04-11 | B21: TOC Data loss | C21: 2x half hour averages N/A due to hydrogen leak shutting down H supply to FID. | D21: Alarm/ interlock modifications that ensure shutdown is initiated in the instance of H alarms being triggered.
A22: 2021-05-11 | B22: TOC Data loss | C22: 200.48mg/Nm3 SO2 ELV breach on 10/05/2021 08:00-08:29 | D22: Issue was as result of a failure of the abatement system. Operator carried out actions as per procedural requirements.
A25: Summary of any complaints received and actions to taken to resolve them.
A26: Date | B26: Summary of complaint [including Line/Reference] | C26: Reason * | D26: Measures taken to prevent reoccurrence
C28: * including whether substantiated by the operator or the EA
G47: Environmental Manager
C53: 21.01.2022

Sheet Improvements
A1: =+'Cover Page'!$B$29 -> Annual Performance Report 2021 | E1: =+'Cover Page'!$B$33 -> Kemsley Generating Station
A3: Summary of Plant Improvements
A5: Summary of any efficiency improvements that have been completed within the year.
A6: N/A. As the plant was commisioined during the first half of 2020, efficiency improvement opportunities are yet to be identified. R1 application submitted Q1 2021 and R1 status approved (rating calculation = 1.03).
A16: Summary of any permit improvement conditions that have been completed within the year and the resulting environmental benefits.
A17: Improvement conditions relating to commisioning of the plant were submitted in 2020. - IC1 - Environmental Management System. Submitted 15/07/2021, discharged 22/07/2021. Kemsley has successfully achieved ISO 14 001 cretification in November 2021, thereby ensuring that a robust management system is in place to reduce environmetal impacts and risk where possible, and to ensure continuous improvement as per standard. - IC2: Commissioning report - discharged 02/11/2021 - IC3: Performance and optimisation of the SNCR system. Submitted 21/12/2021. Awaiting response. - IC5 - T2S (Residence time) testing report - discharged 06/08/2021 - PO04 - discharged 09/08/2021 - PO5 - Drainage: submitted as-built drawings 14/05/2021, discharged 18/05/2021 - IC7 - incineration of sludges: submitted 25/08//2021 - awaiting response - IC4 - Air dispersion Modeling - submitted 08/10/2021 - awaiting response These reports provide evidence that the plant has been installed and operated as per design/ permit requirements. Awaiting response/ confirmation of discharge for a number of submitted ICs.
A27: Summary of any changes to the plant or operating techniques which required a variation to the permit and a summary of the resulting environmental impact.
A28: A varied permit was issued on 29.07.2020. This included an increase in throughput tonnages from 550,000tpa to 657,000tpa. The modelling carried out to support the variation application indicted no significant environmental impact. The variation also included a change from the half-hour average for CO (100mg/nm3) to the 10-minute average (at 150mg/nm3). This has resulted in no reportable CO permit breaches since implementation in September, as the plant CO emissions have been compliant with the IED requirement of 95% compliance with the ELV. This variation has resulted in no CO breaches during 2021. No variation applications relating to operating techniques submitted in 2021.
A38: Summary of any other improvements made to the plant or planned to be made and a summary of the resulting environmental benefits.
A39: Several modifications have been effected to improve visibility of the CEMS status and ensure that appropriate actions are taken should there be negative readings for TOC, CO or Particulates be received. Additional alarms and interlocks have been added to the DCS system that ensures automatic shutdown of the affected boiler in the event of a negative readings or loss of communication between the CDAS and the DCS. a. To further enhance the control room ELV visibility, enfinium have commissioned A1-Cbiss to supply additional hardware and software to display live ELV data and alarm status, directly from the CDAS system, to a 65” wall mounted display screen on the main operating panel in the control room. The improvements have resulted in no further notifiable data loss incidents (with a single incident being reported in April 2021) prior to the implementation of the alarm modifications. The facility has procured a second standby CEM to ensure no data is lost during malfunction of either of the main CEMs on Line 1 or Line 2. Installation is planned for Mid-March during the planned common outage, 2022.
C53: 21.01.2022

Sheet Public Liasion
A1: =+'Cover Page'!$B$29 -> Annual Performance Report 2021 | E1: =+'Cover Page'!$B$33 -> Kemsley Generating Station
A3: Details of Public & Stakeholder Liasion
A5: Summary of events held during the reporting year.
A6: Date | C6: Description
A7: 2021-02-02 | C7: Quarterly Environmental meeting with DS Smith and E.On
A9: 2021-05-10 | C9: Quarterly Environmental meeting with DS Smith and E.On
A11: 2021-08-17 | C11: Quarterly Environmental meeting with DS Smith and E.On
A13: 2021-11-17 | C13: Quarterly Environmental meeting with DS Smith and E.On
A15: 16.11.2021 | C15: Kemsley Fields Business Park Forum (KFBPF)
A18: List of events planned for next year
A19: Date | C19: Description
A20: Q1 | C20: Quarterly Environmental meeting with DS Smith and E.On
A22: Q2 | C22: Quarterly Environmental meeting with DS Smith and E.On
A24: Q3 | C24: Quarterly Environmental meeting with DS Smith and E.On
A26: Q4 | C26: Quarterly Environmental meeting with DS Smith and E.On
A31: If you wish to be involved in the public liasion programme, please contact _________________
C53: 21.01.2022

Sheet Residue Quality
A1: =+'Cover Page'!$B$29 -> Annual Performance Report 2021 | E1: =+'Cover Page'!$B$33 -> Kemsley Generating Station
A3: Residue Quality Monitoring Requirements
A5: Summary of monitoring undertaken and compliance
A6: During commissioning in 2020, and once boiler operation had stabilised, start-up monitoring was carried out on the IBA . 24 samples were taken over a 12 week period and analysed for Hazardous properties. A full 15 hazardous properties analysis was carried out for both IBA and APCr. All 24 samples were categorised as non-hazardous according to the ESA protocol, and the results have been submitted to the Agency.
A8: Hazardous property analysis continues with two samples taken per month. Monthly samples of both APCr and IBA were taken for Environmental Permit compliance analysis until July, when the frequency (as per permit and with agreement from the Agency) reduced to Quarterly. Results are submitted to the Agency on a quarterly basis.
A10: IBA continues to pass as non-hazardous, and is compliant with permit requirements.
A13: Commentary on any specific events
A14: Date & Event | C14: Description
A27: Residue Quality Monitoring Results
A28: Parameter (unit) | C28: Limit | D28: Normal Operation
D29: Bottom ash | F29: APC Residues
A30: Loss on Ignition (average %) | C30: <5% | D30: 1.18
A31: Total Organic Carbon (average %) | C31: <3% | D31: 0.62
A32: No. of Assessments Undertaken | C32: --- | D32: =36+24 -> 60 | F32: =8+7 -> 15
A33: No. of Hazardous Results | C33: --- | D33: 0
A35: Comments :
A36: Total samples taken since commissioining above. Average over 2021 (24 samples) = LOI: 1.33; TOC: 0.61
C53: 21.01.2022

Sheet Water
A1: =+'Cover Page'!$B$29 -> Annual Performance Report 2021 | E1: =+'Cover Page'!$B$33 -> Kemsley Generating Station
A3: Emissions to Water
A5: Summary of monitoring undertaken and compliance
A6: N/A. No limits in permit. Visual inspections carried out to check for hydrocarbons, and pH testing carried out prior to discharging to Swale.
A13: Commentary on any specific events
A14: Date & Event | C14: Description
A22: Emissions to Water / Sewer
A23: Parameter | D23: Monitoring Frequency | G23: Limit | H23: Target | I23: Max. | J23: Average
A24: N/A | D24: N/A | G24: N/A | H24: N/A | I24: N/A | J24: N/A
G47: Environmental Manager
C53: 21.01.2022

Sheet Air (periodic)
B1: =+'Cover Page'!$B$29 -> Annual Performance Report 2021 | F1: =+'Cover Page'!$B$33 -> Kemsley Generating Station
B3: Emissions to Air (periodically monitored)
B5: Summary of monitoring undertaken, standards used and compliance | R5: Notes:
B6: Four (quarterly) rounds of monitoring have been undertaken at Kemsley. All monitored determinands are below pemiltted concentration levels. | R6: Template may require adjustment for any bespoke monitoring requirements of permit.
B7: Results of emissions to air that are periodically monitored
B8: Substance | D8: Ref. Period | E8: Emission Limit Value | G8: Average | R8: User to add additional tables as necessary, depending on whether quarterly or bi-annual reporting is required for the compliance year
H9: A1 | I9: A2
B10: Hydrogen fluoride | D10: 1 hr | E10: 2 mg/m3 | H10: =O46 -> 0.03066666667 | I10: =P46 -> 0.02966666667
B11: Cd and Th and their compounds | D11: 6-8hrs | E11: 0.05 mg/m3 | H11: 0.000775 | I11: 0.0007333333333
B12: Hg and its compounds | D12: 6-8hrs | E12: 0.05 mg/m3 | H12: 0.002925 | I12: 0.0025
B13: Sb, As, Pb, Cr, Co, Cu, Mn, Ni, V and their compounds | D13: 6-8hrs | E13: 0.5 mg/m3 | H13: 0.01725 | I13: 0.019325
B14: Dioxins & Furans (I-TEQ) | D14: 6-8hrs | E14: 0.1 ng/m3 | H14: 0.00545 | I14: 0.006175
B15: PCBs (WHO-TEQ Humans / Mammals) | D15: 6-8hrs | E15: None set ng/m3 | H15: 0.0009485 | I15: 0.001032
B16: PCBs (WHO-TEQ Fish) | D16: 6-8hrs | E16: None set ng/m3 | H16: 0.0016075 | I16: 4.825e-05
B17: PCBs (WHO-TEQ Birds) | D17: 6-8hrs | E17: None set ng/m3 | H17: 0.0037015 | I17: 0.001785
B18: Dioxins & Furans (WHO-TEQ Humans / Mammals) | D18: 6-8hrs | E18: None set ng/m3 | H18: 0.00535 | I18: 0.005275
B19: Dioxins & Furans (WHO-TEQ Fish) | D19: 6-8hrs | E19: None set ng/m3 | H19: 0.005775 | I19: 0.00565
B20: Dioxins & Furans (WHO-TEQ Birds) | D20: 6-8hrs | E20: None set ng/m3 | H20: 0.009675 | I20: 0.008725
B21: Anthanthrene | D21: 6-8hrs | E21: None set µg/m3 | H21: 0.006 | I21: 0.0037
B22: Benzo(a)anthracene | D22: 6-8hrs | E22: None set µg/m3 | H22: 0.0065 | I22: 0.004033333333
B23: Benzo(a)pyrene | D23: 6-8hrs | E23: None set µg/m3 | H23: 0.006 | I23: 0.004033333333
B24: Benzo(b)fluoranthene | D24: 6-8hrs | E24: None set µg/m3 | H24: 0.0031 | I24: 0.0021
B25: Benzo(b)naptho(2,1-d) thiophene | D25: 6-8hrs | E25: None set µg/m3 | H25: 0.00225 | I25: 0.0016
B26: Benzo(c)phenanthrene | D26: 6-8hrs | E26: None set µg/m3 | H26: 0.006 | I26: 0.004033333333
B27: Benzo(ghi)perylene | D27: 6-8hrs | E27: None set µg/m3 | H27: 0.006 | I27: 0.004033333333
B28: Benzo(k)fluoranthene | D28: 6-8hrs | E28: None set µg/m3 | H28: 0.006 | I28: 0.004033333333
B29: Cholanthrene | D29: 6-8hrs | E29: None set µg/m3 | H29: 0.006 | I29: 0.004033333333
B30: Chrysene | D30: 6-8hrs | E30: None set µg/m3 | H30: 0.003033333333 | I30: 0.002233333333
B31: Cyclopenta(cd)pyrene | D31: 6-8hrs | E31: None set µg/m3 | H31: 0.006 | I31: 0.004033333333
B32: Dibenzo(ai)pyrene | D32: 6-8hrs | E32: None set µg/m3 | H32: 0.006 | I32: 0.004033333333
B33: Dibenzo(ah)anthracene | D33: 6-8hrs | E33: None set µg/m3 | H33: 0.006 | I33: 0.004033333333
B34: Fluoranthene | D34: 6-8hrs | E34: None set µg/m3 | H34: 0.01935 | I34: 0.0249
B35: Indeno(123-cd) pyrene | D35: 6-8hrs | E35: None set µg/m3 | H35: 0.006 | I35: 0.004033333333
B36: Naphthalene | D36: 6-8hrs | E36: None set µg/m3 | H36: 0.27905 | I36: 0.09065
B37: PM10 | D37: 4hrs | E37: None set µg/m3 | H37: 0.05333333333 | I37: 0.06225
B38: PM 2.5 | D38: 4hrs | E38: None set µg/m3 | H38: 0.04433333333 | I38: 0.04725
B39: Comments :
G44: Q1 | I44: Q2 | K44: Q3 | M44: Q4 | O44: Averages
B45: Emissions monitoring results for 2021 | G45: L1 | H45: L2 | I45: L1 | J45: L2 | K45: L1 | L45: L2 | M45: L1 | N45: L2 | O45: L1 | P45: L2
B46: Hydrogen fluoride | D46: 1 hr | E46: 2 mg/m3 | G46: 0.033 | H46: 0.031 | I46: 0.028 | J46: 0.027 | K46: 0.031 | L46: 0.031 | M46: <0.03 | N46: <0.03 | O46: =AVERAGE(G46,I46,K46,M46) -> 0.03066666667 | P46: =AVERAGE(H46,J46,L46,N46) -> 0.02966666667
B47: Cd and Th and their compounds | D47: 6-8hrs | E47: 0.05 mg/m3 | G47: Environmental Manager | H47: 0.00077 | I47: 0.00075 | J47: 0.00068 | K47: 0.0008 | L47: 0.00075 | M47: <0.001 | N47: <0.001 | O47: =AVERAGE(G47,I47,K47,M47) -> 0.000775 | P47: =AVERAGE(H47,J47,L47,N47) -> 0.0007333333333
B48: Hg and its compounds | D48: 6-8hrs | E48: 0.05 mg/m3 | G48: 0.0027 | H48: 0.0027 | I48: 0.0029 | J48: 0.002 | K48: 0.0021 | L48: 0.0043 | M48: 0.004 | N48: 0.001 | O48: 0.002925 | P48: 0.0025
B49: Sb, As, Pb, Cr, Co, Cu, Mn, Ni, V and their compounds | D49: 6-8hrs | E49: 0.5 mg/m3 | G49: 0.018 | H49: 0.027 | I49: 0.021 | J49: 0.0083 | K49: 0.018 | L49: 0.027 | M49: 0.012 | N49: 0.015 | O49: 0.01725 | P49: 0.019325
B50: Dioxins & Furans (I-TEQ) | D50: 6-8hrs | E50: 0.1 ng/m3 | G50: 0.011 | H50: 0.012 | I50: 0.0057 | J50: 0.0046 | K50: 0.0016 | L50: 0.0048 | M50: 0.0035 | N50: 0.0033 | O50: 0.00545 | P50: 0.006175
B51: PCBs (WHO-TEQ Humans / Mammals) | D51: 6-8hrs | E51: None set ng/m3 | G51: 0.0017 | H51: 0.0026 | I51: 0.0011 | J51: 0.00059 | K51: 0.00052 | L51: 0.00059 | M51: 0.000474 | N51: 0.000348 | O51: 0.0009485 | P51: 0.001032
B52: PCBs (WHO-TEQ Fish) | D52: 6-8hrs | E52: None set ng/m3 | G52: 8e-05 | H52: 0.00012 | I52: 0.0063 | J52: 2.7e-05 | K52: 2.6e-05 | L52: 2.8e-05 | M52: 2.4e-05 | N52: 1.8e-05 | O52: 0.0016075 | P52: 4.825e-05
B53: PCBs (WHO-TEQ Birds) | C53: 21.01.2022 | D53: 6-8hrs | E53: None set ng/m3 | G53: 0.0031 | H53: 0.0037 | I53: 0.0093 | J53: 0.0011 | K53: 0.0011 | L53: 0.0012 | M53: 0.001306 | N53: 0.00114 | O53: 0.0037015 | P53: 0.001785
B54: Dioxins & Furans (WHO-TEQ Humans / Mammals) | D54: 6-8hrs | E54: None set ng/m3 | G54: 0.011 | H54: 0.012 | I54: 0.0056 | J54: 0.0046 | K54: 0.0016 | L54: 0.001 | M54: 0.0032 | N54: 0.0035 | O54: 0.00535 | P54: 0.005275
B55: Dioxins & Furans (WHO-TEQ Fish) | D55: 6-8hrs | E55: None set ng/m3 | G55: 0.012 | H55: 0.013 | I55: 0.0063 | J55: 0.0049 | K55: 0.0016 | L55: 0.001 | M55: 0.0032 | N55: 0.0037 | O55: 0.005775 | P55: 0.00565
B56: Dioxins & Furans (WHO-TEQ Birds) | D56: 6-8hrs | E56: None set ng/m3 | G56: 0.021 | H56: 0.021 | I56: 0.0093 | J56: 0.0072 | K56: 0.0032 | L56: 0.0011 | M56: 0.0052 | N56: 0.0056 | O56: 0.009675 | P56: 0.008725
B57: Anthanthrene | D57: 6-8hrs | E57: None set µg/m3 | G57: <0.0007 | H57: 0.0001 | I57: 0.001 | J57: 0.001 | K57: 0.011 | L57: 0.0017 | M57: <0.0139 | N57: 0.012 | O57: 0.006 | P57: 0.0037
B58: Benzo(a)anthracene | D58: 6-8hrs | E58: None set µg/m3 | G58: <0.0007 | H58: 0.0001 | I58: 0.002 | J58: 0.001 | K58: 0.011 | L58: 0.011 | M58: <0.0016 | N58: <0.0011 | O58: 0.0065 | P58: 0.004033333333 | Q58: =AVERAGE(K58:N58) -> 0.011
B59: Benzo(a)pyrene | D59: 6-8hrs | E59: None set µg/m3 | G59: <0.0007 | H59: 0.0001 | I59: 0.001 | J59: 0.001 | K59: 0.011 | L59: 0.011 | M59: <0.0016 | N59: <0.0011 | O59: 0.006 | P59: 0.004033333333
B60: Benzo(b)fluoranthene | D60: 6-8hrs | E60: None set µg/m3 | G60: <0.0007 | H60: 0.0001 | I60: 0.001 | J60: 0.001 | K60: 0.0052 | L60: 0.0052 | M60: <0.0016 | N60: <0.0011 | O60: 0.0031 | P60: 0.0021
B61: Benzo(b)naptho(2,1-d) thiophene | D61: 6-8hrs | E61: None set µg/m3 | G61: 0.0015 | H61: 0.0001 | I61: 0.001 | J61: 0.001 | K61: 0.0037 | L61: 0.0037 | M61: 0.0028 | N61: <0.0011 | O61: 0.00225 | P61: 0.0016
B62: Benzo(c)phenanthrene | D62: 6-8hrs | E62: None set µg/m3 | G62: <0.0007 | H62: 0.0001 | I62: 0.001 | J62: 0.001 | K62: 0.011 | L62: 0.011 | M62: <0.0016 | N62: <0.0011 | O62: 0.006 | P62: 0.004033333333
B63: Benzo(ghi)perylene | D63: 6-8hrs | E63: None set µg/m3 | G63: <0.0007 | H63: 0.0001 | I63: 0.001 | J63: 0.001 | K63: 0.011 | L63: 0.011 | M63: <0.0016 | N63: <0.0011 | O63: 0.006 | P63: 0.004033333333
B64: Benzo(k)fluoranthene | D64: 6-8hrs | E64: None set µg/m3 | G64: <0.0007 | H64: 0.0001 | I64: 0.001 | J64: 0.001 | K64: 0.011 | L64: 0.011 | M64: <0.0016 | N64: <0.0011 | O64: 0.006 | P64: 0.004033333333
B65: Cholanthrene | D65: 6-8hrs | E65: None set µg/m3 | G65: <0.0007 | H65: 0.0001 | I65: 0.001 | J65: 0.001 | K65: 0.011 | L65: 0.011 | M65: <0.0016 | N65: <0.0011 | O65: 0.006 | P65: 0.004033333333
B66: Chrysene | D66: 6-8hrs | E66: None set µg/m3 | G66: <0.0007 | H66: 0.0001 | I66: 0.002 | J66: 0.002 | K66: 0.0046 | L66: 0.0046 | M66: 0.0025 | N66: <0.0011 | O66: 0.003033333333 | P66: 0.002233333333
B67: Cyclopenta(cd)pyrene | D67: 6-8hrs | E67: None set µg/m3 | G67: <0.0007 | H67: 0.0001 | I67: 0.001 | J67: 0.001 | K67: 0.011 | L67: 0.011 | M67: <0.0016 | N67: <0.0011 | O67: 0.006 | P67: 0.004033333333
B68: Dibenzo(ai)pyrene | D68: 6-8hrs | E68: None set µg/m3 | G68: <0.0007 | H68: 0.0001 | I68: 0.001 | J68: 0.001 | K68: 0.011 | L68: 0.011 | M68: <0.0016 | N68: <0.0011 | O68: 0.006 | P68: 0.004033333333
B69: Dibenzo(ah)anthracene | D69: 6-8hrs | E69: None set µg/m3 | G69: <0.0007 | H69: 0.0001 | I69: 0.001 | J69: 0.001 | K69: 0.011 | L69: 0.011 | M69: <0.0016 | N69: <0.0011 | O69: 0.006 | P69: 0.004033333333
B70: Fluoranthene | D70: 6-8hrs | E70: None set µg/m3 | G70: 0.008 | H70: 0.005 | I70: 0.007 | J70: 0.01 | K70: 0.031 | L70: 0.0312 | M70: 0.0314 | N70: 0.0534 | O70: 0.01935 | P70: 0.0249
B71: Indeno(123-cd) pyrene | D71: 6-8hrs | E71: None set µg/m3 | G71: <0.0007 | H71: 0.0001 | I71: 0.001 | J71: 0.001 | K71: 0.011 | L71: 0.011 | M71: <0.0016 | N71: <0.0011 | O71: 0.006 | P71: 0.004033333333
B72: Naphthalene | D72: 6-8hrs | E72: None set µg/m3 | G72: 0.54 | H72: 0.056 | I72: 0.073 | J72: 0.11 | K72: 0.36 | L72: 0.086 | M72: 0.1432 | N72: 0.1106 | O72: 0.27905 | P72: 0.09065
B73: PM10 | H73: 0.039 | I73: 0.041 | J73: 0.04 | K73: 0.059 | L73: 0.11 | M73: 0.06 | N73: 0.06 | O73: 0.05333333333 | P73: 0.06225
B74: PM 2.5 | H74: 0.04 | I74: 0.043 | J74: 0.043 | K74: 0.05 | L74: 0.066 | M74: 0.04 | N74: 0.04 | O74: 0.04433333333 | P74: 0.04725

Sheet Air (CEMS)
A1: =+'Cover Page'!$B$29 -> Annual Performance Report 2021
A3: Emissions to Air (continously monitored)
J4: Notes:
A5: Summary of monitoring undertaken, standards used and compliance | J5: Template may require adjustment for any bespoke monitoring requirements of permit
A6: Kemsley has installed MCERT's equipment to continuously monitor emissions as required by the permit. The analysers have undergone QAL2 calibration in July 2021, with new QAL2 calibration functions inputted on 12/10/2021. | J6: Report to 2 decimal places, i.e. xx.xx%
A8: A single ELV breach was recorded for SO2 in May 2021 - 200.48mg/ Nm3. This related to abatement system failure and was reported to the Agency via a Schdule 5 notification submitted on 11/05/2021. No other limit breaches have occurred during 2021
A11: Results of emissions to air that are continuously monitored (maximum and average values for each line)
A12: Substance | B12: Reference Period | C12: Emission Limit Value | D12: A1 | F12: A2
D13: Max. | E13: Avg. | F13: Max. | G13: Avg.
A14: Oxides of nitrogen | B14: Daily mean | C14: 200 mg/m3 | D14: =NOx!O19 -> 184.85 | E14: =NOx!N19 -> 164.35 | F14: =NOx!O34 -> 181.06 | G14: =NOx!N34 -> 165.01
B15: ½ hourly mean | C15: 400 mg/m3 | D15: =NOx!M19 -> 281.33 | E15: =NOx!L19 -> 164.3725 | F15: =NOx!M34 -> 258.25 | G15: =NOx!L34 -> 164.9016667
A16: Particulates | B16: Daily mean | C16: 10 mg/m3 | D16: =Particulates!O19 -> 0.34 | E16: =Particulates!N19 -> 0.0875 | F16: =Particulates!O34 -> 0.33 | G16: =Particulates!N34 -> 0.225
B17: ½ hourly mean | C17: 30 mg/m3 | D17: =Particulates!M19 -> 1.49 | E17: =Particulates!L19 -> 0.0875 | F17: =Particulates!M34 -> 0.89 | G17: =Particulates!L34 -> 0.2241666667
A18: Total Organic Carbon | B18: Daily mean | C18: 10 mg/m3 | D18: =TOC!O19 -> 0.83 | E18: =TOC!N19 -> 0.3616666667 | F18: =TOC!O34 -> 0.98 | G18: =TOC!N34 -> 0.4
B19: ½ hourly mean | C19: 20 mg/m3 | D19: =TOC!M19 -> 3.76 | E19: =TOC!L19 -> 0.3625 | F19: =TOC!M34 -> 5.01 | G19: =TOC!L34 -> 0.405
A20: Hydrogen chloride | B20: Daily mean | C20: 10 mg/m3 | D20: =HCl!O19 -> 8.43 | E20: =HCl!N19 -> 3.575 | F20: =HCl!O34 -> 8.49 | G20: =HCl!N34 -> 3.919166667
B21: ½ hourly mean | C21: 60 mg/m3 | D21: =HCl!M19 -> 28.7 | E21: =HCl!L19 -> 3.5675 | F21: =HCl!M34 -> 27.95 | G21: =HCl!L34 -> 3.856666667
A22: Sulphur dioxide | B22: Daily mean | C22: 50 mg/m3 | D22: ='SO2'!O19 -> 34.32 | E22: ='SO2'!N19 -> 3.135 | F22: ='SO2'!O34 -> 18.46 | G22: ='SO2'!N34 -> 3.601666667
B23: ½ hourly mean | C23: 200 mg/m3 | D23: ='SO2'!M19 -> 181.66 | E23: ='SO2'!L19 -> 3.224166667 | F23: ='SO2'!M34 -> 200.48 | G23: ='SO2'!L34 -> 3.705833333
A24: Carbon monoxide | B24: Daily mean | C24: 50 mg/m3 | D24: ='CO 95% 10 min'!Q19 -> 11.61 | E24: ='CO 95% 10 min'!P19 -> 4.600833333 | F24: ='CO 95% 10 min'!Q34 -> 32.73 | G24: ='CO 95% 10 min'!P34 -> 4.995
B25: 95%ile 10-min avg * | C25: 150 mg/m3 * | D25: ='CO 95% 10 min'!O19 -> 741.69 | E25: ='CO 95% 10 min'!N19 -> 4.614166667 | F25: ='CO 95% 10 min'!O34 -> 3087.7 | G25: ='CO 95% 10 min'!N34 -> 5.0075
A26: Ammonia | B26: Daily mean | C26: No limit set | D26: ='NH3'!O19 -> 2.45 | E26: ='NH3'!N19 -> 0.9033333333 | F26: ='NH3'!O34 -> 3.22 | G26: ='NH3'!N34 -> 0.4816666667
B27: ½ hourly mean | C27: No limit set | D27: ='NH3'!M19 -> 6.91 | E27: ='NH3'!L19 -> 0.9058333333 | F27: ='NH3'!M34 -> 4.63 | G27: ='NH3'!L34 -> 0.4925
A28: * = delete or amend as appropriate
A29: Comments :
G46: Environmental Manager
C52: 21.01.2022

Sheet HCl
A1: =+'Cover Page'!$B$29 -> Annual Performance Report 2021 | E1: =+'Cover Page'!$B$33 -> Kemsley Generating Station
A3: Monitoring of Hydrogen Chloride emissions | D3: Whole Installation | G3: See Notes in Cell Q3 | J3: =+A3 -> Monitoring of Hydrogen Chloride emissions | N3: Per Combustion Line | Q3: Notes:
Q4: User to add logic to complete Whole installation, Table A5:G18. From the data in Per Combustion Line, Table J6:O79, subject to No. of lines installed
A5: mg/Nm3 | B5: 1/2 Hourly Reference Periods | E5: Daily Reference Periods
A6: =+'Cover Page'!C39 -> 2021 | B6: 1/2 hourly HCl ELV | C6: Monthly 1/2 hourly mean | D6: Highest 1/2 hourly maximum | E6: Daily HCl ELV | F6: Monthly daily mean | G6: Highest daily maximum | J6: =+A6 -> 2021 | K6: mg/Nm3 | L6: Monthly 1/2 hourly mean | M6: Monthly 1/2 hourly maximum | N6: Monthly daily mean | O6: Monthly daily maximum
A7: Jan | B7: 60 | C7: 4.49 | D7: 23.88 | E7: 10 | F7: 4.5 | G7: 8.23 | J7: A1 | K7: Jan | L7: 3.04 | M7: 23.88 | N7: 3.06 | O7: 5.75
A8: Feb | B8: 60 | C8: 3.93 | D8: 28.7 | E8: 10 | F8: 3.89 | G8: 8.06 | K8: Feb | L8: 3.06 | M8: 28.7 | N8: 3.02 | O8: 4.96
A9: Mar | B9: 60 | C9: 4.39 | D9: 27.95 | E9: 10 | F9: 4.52 | G9: 8.49 | K9: Mar | L9: 4.02 | M9: 15.89 | N9: 4.08 | O9: 8.3 | Q9: Whole Installation table A5:G18:
A10: Apr | B10: 60 | C10: 4.32 | D10: 11.37 | E10: 10 | F10: 4.35 | G10: 7.23 | K10: Apr | L10: 4.1 | M10: 11.37 | N10: 4.1 | O10: 7.23 | Q10: Mean: for 1/2 hourly and daily periods calculate mean of values across all operational combustion lines for the month
A11: May | B11: 60 | C11: 2.54 | D11: 7.53 | E11: 10 | F11: 2.52 | G11: 4.38 | K11: May | L11: 2.11 | M11: 4.95 | N11: 2.09 | O11: 3.02
A12: Jun | B12: 60 | C12: 3.99 | D12: 8.98 | E12: 10 | F12: 4 | G12: 5.98 | K12: Jun | L12: 4.08 | M12: 8.98 | N12: 4.08 | O12: 5.4
A13: Jul | B13: 60 | C13: 4.71 | D13: 11.02 | E13: 10 | F13: 4.75 | G13: 8.43 | K13: Jul | L13: 4.71 | M13: 11.02 | N13: 4.73 | O13: 8.43 | Q13: Maximum: for 1/2 hourly and daily periods use the highest value across all operational combustion lines for the month
A14: Aug | B14: 60 | C14: 3.19 | D14: 7.1 | E14: 10 | F14: 3.2 | G14: 6.3 | K14: Aug | L14: 2.83 | M14: 7.1 | N14: 2.86 | O14: 6.3
A15: Sep | B15: 60 | C15: 3.68 | D15: 11.32 | E15: 10 | F15: 3.68 | G15: 7.81 | K15: Sep | L15: 4.31 | M15: 11.32 | N15: 4.31 | O15: 6.4
A16: Oct | B16: 60 | C16: 3.09 | D16: 12.33 | E16: 10 | F16: 3.11 | G16: 7.97 | K16: Oct | L16: 3.87 | M16: 12.33 | N16: 3.91 | O16: 7.97
A17: Nov | B17: 60 | C17: 3.06 | D17: 9.61 | E17: 10 | F17: 3.07 | G17: 5.47 | K17: Nov | L17: 3.56 | M17: 9.61 | N17: 3.54 | O17: 5.47
A18: Dec | B18: 60 | C18: 2.85 | D18: 9.36 | E18: 10 | F18: 2.85 | G18: 4.44 | K18: Dec | L18: 3.12 | M18: 9.36 | N18: 3.12 | O18: 4.44
K19: Annual | L19: =AVERAGE(L7:L18) -> 3.5675 | M19: =MAX(M7:M18) -> 28.7 | N19: =AVERAGE(N7:N18) -> 3.575 | O19: =MAX(O7:O18) -> 8.43
J21: =+A6 -> 2021 | K21: mg/Nm3 | L21: Monthly 1/2 hourly mean | M21: Monthly 1/2 hourly maximum | N21: Monthly daily mean | O21: Monthly daily maximum
J22: A2 | K22: Jan | L22: 6.14 | M22: 15.67 | N22: 6.41 | O22: 8.23
K23: Feb | L23: 4.96 | M23: 13.62 | N23: 4.97 | O23: 8.06
K24: Mar | L24: 4.79 | M24: 27.95 | N24: 5.02 | O24: 8.49
K25: Apr | L25: 4.8 | M25: 10.64 | N25: 4.93 | O25: 6.72
K26: May | L26: 2.98 | M26: 7.53 | N26: 2.97 | O26: 4.38
K27: Jun | L27: 3.9 | M27: 6.87 | N27: 3.92 | O27: 5.98
K28: Jul | L28: 4.7 | M28: 9.19 | N28: 4.77 | O28: 7.68
K29: Aug | L29: 3.46 | M29: 5.94 | N29: 3.46 | O29: 4.95
K30: Sep | L30: 3.06 | M30: 8.59 | N30: 3.06 | O30: 7.81
K31: Oct | L31: 2.28 | M31: 4.56 | N31: 2.27 | O31: 3.22
K32: Nov | L32: 2.63 | M32: 8.73 | N32: 2.67 | O32: 4.82
K33: Dec | L33: 2.58 | M33: 6.67 | N33: 2.58 | O33: 3.27
K34: Annual | L34: =AVERAGE(L22:L33) -> 3.856666667 | M34: =MAX(M22:M33) -> 27.95 | N34: =AVERAGE(N22:N33) -> 3.919166667 | O34: =MAX(O22:O33) -> 8.49
A48: Comments :
C53: 21.01.2022

Sheet SO2
A1: =+'Cover Page'!$B$29 -> Annual Performance Report 2021 | E1: =+'Cover Page'!$B$33 -> Kemsley Generating Station
A3: Monitoring of Sulphur dioxide emissions | D3: Whole Installation | G3: See Notes in Cell Q3 | J3: =+A3 -> Monitoring of Sulphur dioxide emissions | N3: Per Combustion Line | Q3: Notes:
Q4: User to add logic to complete Whole installation, Table A5:G18. From the data in Per Combustion Line, Table J6:O79, subject to No. of lines installed
A5: mg/Nm3 | B5: 1/2 Hourly Reference Periods | E5: Daily Reference Periods
A6: =+'Cover Page'!C39 -> 2021 | B6: 1/2 hourly SO2 ELV | C6: Monthly 1/2 hourly mean | D6: Highest 1/2 hourly maximum | E6: Daily SO2 ELV | F6: Monthly daily mean | G6: Highest daily maximum | J6: =+A6 -> 2021 | K6: mg/Nm3 | L6: Monthly 1/2 hourly mean | M6: Monthly 1/2 hourly maximum | N6: Monthly daily mean | O6: Monthly daily maximum
A7: Jan | B7: 200 | C7: 2.06 | D7: 38.28 | E7: 50 | F7: 1.91 | G7: 5.21 | J7: A1 | K7: Jan | L7: 1.55 | M7: 38.28 | N7: 1.53 | O7: 2.95
A8: Feb | B8: 200 | C8: 3.85 | D8: 68.77 | E8: 50 | F8: 3.6 | G8: 14.81 | K8: Feb | L8: 2.79 | M8: 68.77 | N8: 2.61 | O8: 14.81
A9: Mar | B9: 200 | C9: 4.77 | D9: 74.69 | E9: 50 | F9: 4.8 | G9: 11.89 | K9: Mar | L9: 4.05 | M9: 55.67 | N9: 3.87 | O9: 9.29 | Q9: Whole Installation table A5:G18:
A10: Apr | B10: 200 | C10: 3.32 | D10: 39.41 | E10: 50 | F10: 3.3 | G10: 7.29 | K10: Apr | L10: 3.46 | M10: 39.41 | N10: 3.44 | O10: 6.94 | Q10: Mean: for 1/2 hourly and daily periods calculate mean of values across all operational combustion lines for the month
A11: May | B11: 200 | C11: 6.75 | D11: 200.48 | E11: 50 | F11: 5.97 | G11: 34.32 | K11: May | L11: 6.79 | M11: 181.66 | N11: 6.38 | O11: 34.32
A12: Jun | B12: 200 | C12: 2.92 | D12: 28.54 | E12: 50 | F12: 2.91 | G12: 7.2 | K12: Jun | L12: 1.36 | M12: 28.54 | N12: 1.36 | O12: 3.49
A13: Jul | B13: 200 | C13: 3.03 | D13: 35.46 | E13: 50 | F13: 2.97 | G13: 8.19 | K13: Jul | L13: 1.81 | M13: 35.46 | N13: 1.67 | O13: 8.19 | Q13: Maximum: for 1/2 hourly and daily periods use the highest value across all operational combustion lines for the month
A14: Aug | B14: 200 | C14: 2.54 | D14: 16.75 | E14: 50 | F14: 2.54 | G14: 4.47 | K14: Aug | L14: 0.74 | M14: 10.84 | N14: 0.68 | O14: 2.51
A15: Sep | B15: 200 | C15: 2.52 | D15: 28.32 | E15: 50 | F15: 2.52 | G15: 4.67 | K15: Sep | L15: 1.08 | M15: 28.32 | N15: 1.08 | O15: 2.99
A16: Oct | B16: 200 | C16: 1.8 | D16: 30.49 | E16: 50 | F16: 1.73 | G16: 4.36 | K16: Oct | L16: 1.31 | M16: 30.49 | N16: 1.14 | O16: 4.01
A17: Nov | B17: 200 | C17: 4.51 | D17: 56.74 | E17: 50 | F17: 4.6 | G17: 18.51 | K17: Nov | L17: 8.02 | M17: 56.74 | N17: 8.13 | O17: 18.51
A18: Dec | B18: 200 | C18: 3.37 | D18: 92.04 | E18: 50 | F18: 3.37 | G18: 17.12 | K18: Dec | L18: 5.73 | M18: 49.77 | N18: 5.73 | O18: 17.12
K19: Annual | L19: =AVERAGE(L7:L18) -> 3.224166667 | M19: =MAX(M7:M18) -> 181.66 | N19: =AVERAGE(N7:N18) -> 3.135 | O19: =MAX(O7:O18) -> 34.32
J21: =+A6 -> 2021 | K21: mg/Nm3 | L21: Monthly 1/2 hourly mean | M21: Monthly 1/2 hourly maximum | N21: Monthly daily mean | O21: Monthly daily maximum
J22: A2 | K22: Jan | L22: 2.64 | M22: 33.54 | N22: 2.42 | O22: 5.21
K23: Feb | L23: 5.1 | M23: 53.67 | N23: 4.83 | O23: 10.06
K24: Mar | L24: 5.55 | M24: 74.69 | N24: 5.87 | O24: 11.89
K25: Apr | L25: 3.02 | M25: 30 | N25: 2.98 | O25: 7.29
K26: May | L26: 6.7 | M26: 200.48 | N26: 5.54 | O26: 18.46
K27: Jun | L27: 4.5 | M27: 22.36 | N27: 4.5 | O27: 7.2
K28: Jul | L28: 4.21 | M28: 15.39 | N28: 4.22 | O28: 5.52
K29: Aug | L29: 3.92 | M29: 16.75 | N29: 3.92 | O29: 4.47
K30: Sep | L30: 3.95 | M30: 7.72 | N30: 3.95 | O30: 4.67
K31: Oct | L31: 2.31 | M31: 13.44 | N31: 2.35 | O31: 4.36
K32: Nov | L32: 1.55 | M32: 31.69 | N32: 1.62 | O32: 4.37
K33: Dec | L33: 1.02 | M33: 92.04 | N33: 1.02 | O33: 4.02
K34: Annual | L34: =AVERAGE(L22:L33) -> 3.705833333 | M34: =MAX(M22:M33) -> 200.48 | N34: =AVERAGE(N22:N33) -> 3.601666667 | O34: =MAX(O22:O33) -> 18.46
A48: Comments :
C53: 21.01.2022

Sheet NOx
A1: =+'Cover Page'!$B$29 -> Annual Performance Report 2021 | E1: =+'Cover Page'!$B$33 -> Kemsley Generating Station
A3: Monitoring of Oxides of Nitrogen emissions | D3: Whole Installation | G3: See Notes in Cell Q3 | J3: =+A3 -> Monitoring of Oxides of Nitrogen emissions | N3: Per Combustion Line | Q3: Notes:
Q4: User to add logic to complete Whole installation, Table A5:G18. From the data in Per Combustion Line, Table J6:O79, subject to No. of lines installed
A5: mg/Nm3 | B5: 1/2 Hourly Reference Periods | E5: Daily Reference Periods
A6: =+'Cover Page'!C39 -> 2021 | B6: 1/2 hourly NOx ELV | C6: Monthly 1/2 hourly mean | D6: Highest 1/2 hourly maximum | E6: Daily NOx ELV | F6: Monthly daily mean | G6: Highest daily maximum | J6: =+A6 -> 2021 | K6: mg/Nm3 | L6: Monthly 1/2 hourly mean | M6: Monthly 1/2 hourly maximum | N6: Monthly daily mean | O6: Monthly daily maximum
A7: Jan | B7: 400 | C7: 152.84 | D7: 271.74 | E7: 200 | F7: 152.86 | G7: 162.09 | J7: A1 | K7: Jan | L7: 152.87 | M7: 271.74 | N7: 152.88 | O7: 162.09
A8: Feb | B8: 400 | C8: 152.82 | D8: 247.2 | E8: 200 | F8: 152.84 | G8: 160.64 | K8: Feb | L8: 153.06 | M8: 239.76 | N8: 153.04 | O8: 160.64
A9: Mar | B9: 400 | C9: 152.8 | D9: 246.61 | E9: 200 | F9: 153.12 | G9: 158.46 | K9: Mar | L9: 152.64 | M9: 246.61 | N9: 152.67 | O9: 156.25 | Q9: Whole Installation table A5:G18:
A10: Apr | B10: 400 | C10: 152.51 | D10: 197.91 | E10: 200 | F10: 152.5 | G10: 154.31 | K10: Apr | L10: 152.3 | M10: 197.91 | N10: 152.3 | O10: 153.37 | Q10: Mean: for 1/2 hourly and daily periods calculate mean of values across all operational combustion lines for the month
A11: May | B11: 400 | C11: 156.78 | D11: 231.05 | E11: 200 | F11: 156.95 | G11: 181.06 | K11: May | L11: 155.74 | M11: 207.05 | N11: 155.63 | O11: 179
A12: Jun | B12: 400 | C12: 157.06 | D12: 234.22 | E12: 200 | F12: 157.06 | G12: 180.3 | K12: Jun | L12: 156.09 | M12: 201.98 | N12: 156.09 | O12: 180.3
A13: Jul | B13: 400 | C13: 176.54 | D13: 270.34 | E13: 200 | F13: 176.42 | G13: 181.13 | K13: Jul | L13: 176.34 | M13: 270.34 | N13: 176.08 | O13: 181.13 | Q13: Maximum: for 1/2 hourly and daily periods use the highest value across all operational combustion lines for the month
A14: Aug | B14: 400 | C14: 174.77 | D14: 258.25 | E14: 200 | F14: 174.82 | G14: 179.73 | K14: Aug | L14: 173.87 | M14: 242.82 | N14: 173.96 | O14: 179.73
A15: Sep | B15: 400 | C15: 175.55 | D15: 281.33 | E15: 200 | F15: 175.55 | G15: 184.85 | K15: Sep | L15: 175.48 | M15: 281.33 | N15: 175.48 | O15: 184.85
A16: Oct | B16: 400 | C16: 175.3 | D16: 232.76 | E16: 200 | F16: 175.31 | G16: 176.56 | K16: Oct | L16: 175.32 | M16: 232.76 | N16: 175.31 | O16: 176.56
A17: Nov | B17: 400 | C17: 175.34 | D17: 251.99 | E17: 200 | F17: 175.34 | G17: 178.1 | K17: Nov | L17: 175.38 | M17: 251.99 | N17: 175.38 | O17: 178.1
A18: Dec | B18: 400 | C18: 173.31 | D18: 269.36 | E18: 200 | F18: 173.31 | G18: 176.24 | K18: Dec | L18: 173.38 | M18: 269.36 | N18: 173.38 | O18: 176.24
K19: Annual | L19: =AVERAGE(L7:L18) -> 164.3725 | M19: =MAX(M7:M18) -> 281.33 | N19: =AVERAGE(N7:N18) -> 164.35 | O19: =MAX(O7:O18) -> 184.85
J21: =+A6 -> 2021 | K21: mg/Nm3 | L21: Monthly 1/2 hourly mean | M21: Monthly 1/2 hourly maximum | N21: Monthly daily mean | O21: Monthly daily maximum
J22: A2 | K22: Jan | L22: 152.81 | M22: 253.31 | N22: 152.84 | O22: 155.54
K23: Feb | L23: 152.53 | M23: 247.2 | N23: 152.6 | O23: 157.27
K24: Mar | L24: 152.97 | M24: 212.72 | N24: 153.64 | O24: 158.46
K25: Apr | L25: 152.95 | M25: 188.72 | N25: 152.96 | O25: 154.31
K26: May | L26: 157.87 | M26: 231.05 | N26: 158.35 | O26: 181.06
K27: Jun | L27: 158.05 | M27: 234.22 | N27: 158.06 | O27: 180.17
K28: Jul | L28: 176.74 | M28: 252.24 | N28: 176.75 | O28: 180.93
K29: Aug | L29: 175.45 | M29: 258.25 | N29: 175.45 | O29: 177.82
K30: Sep | L30: 175.62 | M30: 218.37 | N30: 175.62 | O30: 176.72
K31: Oct | L31: 175.28 | M31: 214.72 | N31: 175.3 | O31: 176.53
K32: Nov | L32: 175.3 | M32: 204.58 | N32: 175.31 | O32: 176.05
K33: Dec | L33: 173.25 | M33: 240.72 | N33: 173.24 | O33: 176.14
K34: Annual | L34: =AVERAGE(L22:L33) -> 164.9016667 | M34: =MAX(M22:M33) -> 258.25 | N34: =AVERAGE(N22:N33) -> 165.01 | O34: =MAX(O22:O33) -> 181.06
A48: Comments :
C53: 21.01.2022

Sheet TOC
A1: =+'Cover Page'!$B$29 -> Annual Performance Report 2021 | E1: =+'Cover Page'!$B$33 -> Kemsley Generating Station
A3: Monitoring of Total organic carbon emissions | D3: Whole Installation | G3: See Notes in Cell Q3 | J3: =+A3 -> Monitoring of Total organic carbon emissions | N3: Per Combustion Line | Q3: Notes:
Q4: User to add logic to complete Whole installation, Table A5:G18. From the data in Per Combustion Line, Table J6:O79, subject to No. of lines installed
A5: mg/Nm3 | B5: 1/2 Hourly Reference Periods | E5: Daily Reference Periods
A6: =+'Cover Page'!C39 -> 2021 | B6: 1/2 hourly TOC ELV | C6: Monthly 1/2 hourly mean | D6: Highest 1/2 hourly maximum | E6: Daily TOC ELV | F6: Monthly daily mean | G6: Highest daily maximum | J6: =+A6 -> 2021 | K6: mg/Nm3 | L6: Monthly 1/2 hourly mean | M6: Monthly 1/2 hourly maximum | N6: Monthly daily mean | O6: Monthly daily maximum
A7: Jan | B7: 20 | C7: 0.3 | D7: 1.74 | E7: 10 | F7: 0.29 | G7: 0.58 | J7: A1 | K7: Jan | L7: 0.28 | M7: 1.28 | N7: 0.28 | O7: 0.43
A8: Feb | B8: 20 | C8: 0.38 | D8: 4.49 | E8: 10 | F8: 0.37 | G8: 0.62 | K8: Feb | L8: 0.36 | M8: 3.76 | N8: 0.36 | O8: 0.47
A9: Mar | B9: 20 | C9: 0.41 | D9: 2.63 | E9: 10 | F9: 0.41 | G9: 0.57 | K9: Mar | L9: 0.36 | M9: 1.82 | N9: 0.37 | O9: 0.47 | Q9: Whole Installation table A5:G18:
A10: Apr | B10: 20 | C10: 0.44 | D10: 1.54 | E10: 10 | F10: 0.44 | G10: 0.61 | K10: Apr | L10: 0.41 | M10: 1.49 | N10: 0.41 | O10: 0.59 | Q10: Mean: for 1/2 hourly and daily periods calculate mean of values across all operational combustion lines for the month
A11: May | B11: 20 | C11: 0.61 | D11: 1.92 | E11: 10 | F11: 0.6 | G11: 0.98 | K11: May | L11: 0.65 | M11: 1.45 | N11: 0.65 | O11: 0.83
A12: Jun | B12: 20 | C12: 0.46 | D12: 4.44 | E12: 10 | F12: 0.46 | G12: 0.55 | K12: Jun | L12: 0.43 | M12: 1.14 | N12: 0.43 | O12: 0.51
A13: Jul | B13: 20 | C13: 0.47 | D13: 1.93 | E13: 10 | F13: 0.47 | G13: 0.56 | K13: Jul | L13: 0.44 | M13: 1.93 | N13: 0.44 | O13: 0.5 | Q13: Maximum: for 1/2 hourly and daily periods use the highest value across all operational combustion lines for the month
A14: Aug | B14: 20 | C14: 0.47 | D14: 3.42 | E14: 10 | F14: 0.47 | G14: 0.54 | K14: Aug | L14: 0.45 | M14: 1.28 | N14: 0.44 | O14: 0.52
A15: Sep | B15: 20 | C15: 0.47 | D15: 3.2 | E15: 10 | F15: 0.47 | G15: 0.56 | K15: Sep | L15: 0.44 | M15: 0.97 | N15: 0.44 | O15: 0.51
A16: Oct | B16: 20 | C16: 0.28 | D16: 3.86 | E16: 10 | F16: 0.29 | G16: 0.52 | K16: Oct | L16: 0.26 | M16: 1.4 | N16: 0.26 | O16: 0.45
A17: Nov | B17: 20 | C17: 0.15 | D17: 5.01 | E17: 10 | F17: 0.15 | G17: 0.28 | K17: Nov | L17: 0.15 | M17: 2.77 | N17: 0.14 | O17: 0.2
A18: Dec | B18: 20 | C18: 0.13 | D18: 2.89 | E18: 10 | F18: 0.13 | G18: 0.31 | K18: Dec | L18: 0.12 | M18: 1.07 | N18: 0.12 | O18: 0.31
K19: Annual | L19: =AVERAGE(L7:L18) -> 0.3625 | M19: =MAX(M7:M18) -> 3.76 | N19: =AVERAGE(N7:N18) -> 0.3616666667 | O19: =MAX(O7:O18) -> 0.83
J21: =+A6 -> 2021 | K21: mg/Nm3 | L21: Monthly 1/2 hourly mean | M21: Monthly 1/2 hourly maximum | N21: Monthly daily mean | O21: Monthly daily maximum
J22: A2 | K22: Jan | L22: 0.33 | M22: 1.74 | N22: 0.31 | O22: 0.58
K23: Feb | L23: 0.4 | M23: 4.49 | N23: 0.39 | O23: 0.62
K24: Mar | L24: 0.46 | M24: 2.63 | N24: 0.45 | O24: 0.57
K25: Apr | L25: 0.51 | M25: 1.54 | N25: 0.51 | O25: 0.61
K26: May | L26: 0.57 | M26: 1.92 | N26: 0.54 | O26: 0.98
K27: Jun | L27: 0.5 | M27: 4.44 | N27: 0.5 | O27: 0.55
K28: Jul | L28: 0.5 | M28: 1.39 | N28: 0.5 | O28: 0.56
K29: Aug | L29: 0.48 | M29: 3.42 | N29: 0.48 | O29: 0.54
K30: Sep | L30: 0.5 | M30: 3.2 | N30: 0.5 | O30: 0.56
K31: Oct | L31: 0.31 | M31: 3.86 | N31: 0.32 | O31: 0.52
K32: Nov | L32: 0.16 | M32: 5.01 | N32: 0.16 | O32: 0.28
K33: Dec | L33: 0.14 | M33: 2.89 | N33: 0.14 | O33: 0.3
K34: Annual | L34: =AVERAGE(L22:L33) -> 0.405 | M34: =MAX(M22:M33) -> 5.01 | N34: =AVERAGE(N22:N33) -> 0.4 | O34: =MAX(O22:O33) -> 0.98
A48: Comments :
C53: 21.01.2022

Sheet Particulates
A1: =+'Cover Page'!$B$29 -> Annual Performance Report 2021 | E1: =+'Cover Page'!$B$33 -> Kemsley Generating Station
A3: Monitoring of Particulate matter emissions | D3: Whole Installation | G3: See Notes in Cell Q3 | J3: =+A3 -> Monitoring of Particulate matter emissions | N3: Per Combustion Line | Q3: Notes:
Q4: User to add logic to complete Whole installation, Table A5:G18. From the data in Per Combustion Line, Table J6:O79, subject to No. of lines installed
A5: mg/Nm3 | B5: 1/2 Hourly Reference Periods | E5: Daily Reference Periods
A6: =+'Cover Page'!C39 -> 2021 | B6: 1/2 hourly PM ELV | C6: Monthly 1/2 hourly mean | D6: Highest 1/2 hourly maximum | E6: Daily PM ELV | F6: Monthly daily mean | G6: Highest daily maximum | J6: =+A6 -> 2021 | K6: mg/Nm3 | L6: Monthly 1/2 hourly mean | M6: Monthly 1/2 hourly maximum | N6: Monthly daily mean | O6: Monthly daily maximum
A7: Jan | B7: 30 | C7: 0.1 | D7: 0.19 | E7: 10 | F7: 0.1 | G7: 0.13 | J7: A1 | K7: Jan | L7: 0.08 | M7: 0.19 | N7: 0.08 | O7: 0.08
A8: Feb | B8: 30 | C8: 0.1 | D8: 0.35 | E8: 10 | F8: 0.1 | G8: 0.15 | K8: Feb | L8: 0.08 | M8: 0.35 | N8: 0.08 | O8: 0.15
A9: Mar | B9: 30 | C9: 0.16 | D9: 0.42 | E9: 10 | F9: 0.16 | G9: 0.27 | K9: Mar | L9: 0.09 | M9: 0.37 | N9: 0.09 | O9: 0.24 | Q9: Whole Installation table A5:G18:
A10: Apr | B10: 30 | C10: 0.15 | D10: 0.89 | E10: 10 | F10: 0.15 | G10: 0.33 | K10: Apr | L10: 0.09 | M10: 0.8 | N10: 0.09 | O10: 0.13 | Q10: Mean: for 1/2 hourly and daily periods calculate mean of values across all operational combustion lines for the month
A11: May | B11: 30 | C11: 0.15 | D11: 0.51 | E11: 10 | F11: 0.15 | G11: 0.23 | K11: May | L11: 0.08 | M11: 0.21 | N11: 0.08 | O11: 0.09
A12: Jun | B12: 30 | C12: 0.14 | D12: 0.37 | E12: 10 | F12: 0.14 | G12: 0.23 | K12: Jun | L12: 0.07 | M12: 0.37 | N12: 0.07 | O12: 0.08
A13: Jul | B13: 30 | C13: 0.15 | D13: 0.36 | E13: 10 | F13: 0.15 | G13: 0.22 | K13: Jul | L13: 0.07 | M13: 0.36 | N13: 0.07 | O13: 0.08 | Q13: Maximum: for 1/2 hourly and daily periods use the highest value across all operational combustion lines for the month
A14: Aug | B14: 30 | C14: 0.19 | D14: 1.49 | E14: 10 | F14: 0.19 | G14: 0.34 | K14: Aug | L14: 0.13 | M14: 1.49 | N14: 0.13 | O14: 0.34
A15: Sep | B15: 30 | C15: 0.17 | D15: 0.51 | E15: 10 | F15: 0.17 | G15: 0.25 | K15: Sep | L15: 0.11 | M15: 0.51 | N15: 0.11 | O15: 0.25
A16: Oct | B16: 30 | C16: 0.17 | D16: 0.36 | E16: 10 | F16: 0.17 | G16: 0.28 | K16: Oct | L16: 0.09 | M16: 0.36 | N16: 0.09 | O16: 0.12
A17: Nov | B17: 30 | C17: 0.18 | D17: 0.39 | E17: 10 | F17: 0.18 | G17: 0.29 | K17: Nov | L17: 0.08 | M17: 0.15 | N17: 0.08 | O17: 0.08
A18: Dec | B18: 30 | C18: 0.17 | D18: 0.33 | E18: 10 | F18: 0.17 | G18: 0.28 | K18: Dec | L18: 0.08 | M18: 0.15 | N18: 0.08 | O18: 0.08
K19: Annual | L19: =AVERAGE(L7:L18) -> 0.0875 | M19: =MAX(M7:M18) -> 1.49 | N19: =AVERAGE(N7:N18) -> 0.0875 | O19: =MAX(O7:O18) -> 0.34
J21: =+A6 -> 2021 | K21: mg/Nm3 | L21: Monthly 1/2 hourly mean | M21: Monthly 1/2 hourly maximum | N21: Monthly daily mean | O21: Monthly daily maximum
J22: A2 | K22: Jan | L22: 0.12 | M22: 0.17 | N22: 0.12 | O22: 0.13
K23: Feb | L23: 0.12 | M23: 0.16 | N23: 0.12 | O23: 0.13
K24: Mar | L24: 0.24 | M24: 0.42 | N24: 0.24 | O24: 0.27
K25: Apr | L25: 0.27 | M25: 0.89 | N25: 0.28 | O25: 0.33
K26: May | L26: 0.23 | M26: 0.51 | N26: 0.23 | O26: 0.23
K27: Jun | L27: 0.22 | M27: 0.37 | N27: 0.22 | O27: 0.23
K28: Jul | L28: 0.22 | M28: 0.26 | N28: 0.22 | O28: 0.22
K29: Aug | L29: 0.23 | M29: 0.29 | N29: 0.23 | O29: 0.24
K30: Sep | L30: 0.24 | M30: 0.28 | N30: 0.24 | O30: 0.24
K31: Oct | L31: 0.26 | M31: 0.34 | N31: 0.26 | O31: 0.28
K32: Nov | L32: 0.27 | M32: 0.39 | N32: 0.27 | O32: 0.29
K33: Dec | L33: 0.27 | M33: 0.33 | N33: 0.27 | O33: 0.28
K34: Annual | L34: =AVERAGE(L22:L33) -> 0.2241666667 | M34: =MAX(M22:M33) -> 0.89 | N34: =AVERAGE(N22:N33) -> 0.225 | O34: =MAX(O22:O33) -> 0.33
A48: Comments :
C53: 21.01.2022

Sheet CO 95% 10 min
A1: =+'Cover Page'!$B$29 -> Annual Performance Report 2021 | E1: =+'Cover Page'!$B$33 -> Kemsley Generating Station
A3: Monitoring of Carbon Monoxide (10-minute avg) | E3: Whole Installation | H3: See Notes in Cell S3 | J3: =+A3 -> Monitoring of Carbon Monoxide (10-minute avg) | O3: Per Combustion Line | Q3: Notes: | S3: Notes:
S4: User to add logic to complete Whole installation, Table A5:H18. From the data in Per Combustion Line, Table K6:Q79, subject to No. of lines installed
A5: mg/Nm3 | B5: 10-minute Reference Periods | F5: Daily Reference Periods
A6: =+'Cover Page'!C39 -> 2021 | B6: 95%ile 10-min avg CO ELV | C6: 95%ile 10-min avg maximum | D6: Monthly CO 10-min avg mean | E6: 10-min avg maximum | F6: Daily CO ELV | G6: Monthly daily mean | H6: Highest daily maximum | K6: =+A6 -> 2021 | L6: mg/Nm3 | M6: 95%ile 10-min avg maximum | N6: Monthly CO 10-min avg mean | O6: 10-min avg maximum | P6: Monthly daily mean | Q6: Monthly daily maximum
A7: Jan | B7: 150 | C7: 12.59 | D7: 5.33 | E7: 627.97 | F7: 50 | G7: 5.35 | H7: 8.83 | K7: A1 | L7: Jan | M7: 9.56 | N7: 5.41 | O7: 233.52 | P7: 5.43 | Q7: 7.06
A8: Feb | B8: =+B7 -> 150 | C8: 14.07 | D8: 5.82 | E8: 935.34 | F8: =+F7 -> 50 | G8: 5.8 | H8: 14.15 | L8: Feb | M8: 9.86 | N8: 5.7 | O8: 179.24 | P8: 5.67 | Q8: 7.3
A9: Mar | B9: =+B8 -> 150 | C9: 12.43 | D9: 5.56 | E9: 1000.81 | F9: =+F8 -> 50 | G9: 5.54 | H9: 11.18 | L9: Mar | M9: 11.96 | N9: 5.5 | O9: 287.72 | P9: 5.5 | Q9: 7.77 | S9: Whole Installation table A5:H18:
A10: Apr | B10: 150 | C10: 32.91 | D10: 6.28 | E10: 3087.7 | F10: 50 | G10: 6.31 | H10: 32.73 | L10: Apr | M10: 9.67 | N10: 5.57 | O10: 741.69 | P10: 5.57 | Q10: 10.47 | S10: Mean: for 10-min and daily periods use average of all operational combustion lines.
A11: May | B11: 150 | C11: 15.81 | D11: 4.8 | E11: 406.03 | F11: 50 | G11: 4.68 | H11: 7.62 | L11: May | M11: 14.52 | N11: 4.54 | O11: 226.95 | P11: 4.58 | Q11: 7.62
A12: Jun | B12: 150 | C12: 22.88 | D12: 4.36 | E12: 923.23 | F12: 50 | G12: 4.37 | H12: 11.61 | L12: Jun | M12: 22.88 | N12: 4.35 | O12: 717.66 | P12: 4.35 | Q12: 11.61
A13: Jul | B13: 150 | C13: 6.95 | D13: 4.57 | E13: 421.35 | F13: 50 | G13: 4.54 | H13: 8.17 | L13: Jul | M13: 6.95 | N13: 4.36 | O13: 421.35 | P13: 4.27 | Q13: 8.17 | S13: Maximum: for 10-min and daily periods use the highest of all operational combustion lines in any month.
A14: Aug | B14: 150 | C14: 7.25 | D14: 4.64 | E14: 986.72 | F14: 50 | G14: 4.66 | H14: 12.77 | L14: Aug | M14: 5.24 | N14: 4.11 | O14: 391.4 | P14: 4.12 | Q14: 6.81
A15: Sep | B15: 150 | C15: 10.88 | D15: 4.54 | E15: 736.59 | F15: 50 | G15: 4.54 | H15: 8.58 | L15: Sep | M15: 5.7 | N15: 4.11 | O15: 264.12 | P15: 4.11 | Q15: 5.74
A16: Oct | B16: 150 | C16: 9.66 | D16: 3.55 | E16: 194.01 | F16: 50 | G16: 3.54 | H16: 5.54 | L16: Oct | M16: 5.65 | N16: 3.86 | O16: 194.01 | P16: 3.82 | Q16: 5.06
A17: Nov | B17: 150 | C17: 12.94 | D17: 4.04 | E17: 1078.12 | F17: 50 | G17: 3.96 | H17: 13.11 | L17: Nov | M17: 8.25 | N17: 4.14 | O17: 475.26 | P17: 4.07 | Q17: 7.26
A18: Dec | B18: 150 | C18: 26.39 | D18: 3.91 | E18: 990.24 | F18: 50 | G18: 3.91 | H18: 11.98 | L18: Dec | M18: 6.62 | N18: 3.72 | O18: 463.09 | P18: 3.72 | Q18: 6.58
L19: Annual | M19: =MAX(M7:M18) -> 22.88 | N19: =AVERAGE(N7:N18) -> 4.614166667 | O19: =MAX(O7:O18) -> 741.69 | P19: =AVERAGE(P7:P18) -> 4.600833333 | Q19: =MAX(Q7:Q18) -> 11.61
K21: =+A6 -> 2021 | L21: mg/Nm3 | M21: 95%ile 10-min avg maximum | N21: Monthly CO 10-min avg mean | O21: 10-min avg maximum | P21: Monthly daily mean | Q21: Monthly daily maximum
K22: A2 | L22: Jan | M22: 12.59 | N22: 5.23 | O22: 627.97 | P22: 5.24 | Q22: 8.83
L23: Feb | M23: 14.07 | N23: 5.96 | O23: 935.34 | P23: 5.95 | Q23: 14.15
L24: Mar | M24: 12.43 | N24: 5.61 | O24: 1000.81 | P24: 5.59 | Q24: 11.18
L25: Apr | M25: 32.91 | N25: 7.77 | O25: 3087.7 | P25: 7.96 | Q25: 32.73
L26: May | M26: 15.81 | N26: 5.08 | O26: 406.03 | P26: 4.79 | Q26: 7.5
L27: Jun | M27: 7.92 | N27: 4.36 | O27: 923.23 | P27: 4.38 | Q27: 10.79
L28: Jul | M28: 6.84 | N28: 4.78 | O28: 284.07 | P28: 4.79 | Q28: 7.92
L29: Aug | M29: 7.25 | N29: 5.05 | O29: 986.72 | P29: 5.05 | Q29: 12.77
L30: Sep | M30: 10.88 | N30: 4.97 | O30: 736.59 | P30: 4.97 | Q30: 8.58
L31: Oct | M31: 9.66 | N31: 3.21 | O31: 180.26 | P31: 3.25 | Q31: 5.54
L32: Nov | M32: 12.94 | N32: 3.96 | O32: 1078.12 | P32: 3.87 | Q32: 13.11
L33: Dec | M33: 26.39 | N33: 4.11 | O33: 990.24 | P33: 4.1 | Q33: 11.98
L34: Annual | M34: =MAX(M22:M33) -> 32.91 | N34: =AVERAGE(N22:N33) -> 5.0075 | O34: =MAX(O22:O33) -> 3087.7 | P34: =AVERAGE(P22:P33) -> 4.995 | Q34: =MAX(Q22:Q33) -> 32.73
A48: Comments :
A49: Environment Agency explanatory note: The 10-minute average ELV is based on the “95th percentile”. In this case this means that 95% of the 10 minute averages in the relevant 24-hour period (i.e. 137) must be below 150 mg/Nm3, and 5% (i.e. 7) are allowed to be any value above 150 mg/Nm3. Whilst we expect operators to minimise CO emissions at all times, it is perfectly acceptable for the value of the maximum 10-minute average to be above 150 mg/Nm3, provided the 95th percentile ELV has been met for that period.
C53: 21.01.2022

Sheet NH3
A1: =+'Cover Page'!$B$29 -> Annual Performance Report 2021 | E1: =+'Cover Page'!$B$33 -> Kemsley Generating Station
A3: Monitoring of Ammnonia emissions | D3: Whole Installation | G3: See Notes in Cell Q3 | J3: =+A3 -> Monitoring of Ammnonia emissions | N3: Per Combustion Line | Q3: Notes:
Q4: User to add logic to complete Whole installation, Table A5:G18. From the data in Per Combustion Line, Table J6:O79, subject to No. of lines installed
A5: mg/Nm3 | B5: 1/2 Hourly Reference Periods | E5: Daily Reference Periods
A6: =+'Cover Page'!C39 -> 2021 | B6: 1/2 hourly NH3 ELV | C6: Monthly 1/2 hourly mean | D6: Highest 1/2 hourly maximum | E6: Daily NH3 ELV | F6: Monthly daily mean | G6: Highest daily maximum | J6: =+A6 -> 2021 | K6: mg/Nm3 | L6: Monthly 1/2 hourly mean | M6: Monthly 1/2 hourly maximum | N6: Monthly daily mean | O6: Monthly daily maximum
A7: Jan | B7: 0 | C7: 0.91 | D7: 4.47 | E7: 10 | F7: 0.93 | G7: 1.99 | J7: A1 | K7: Jan | L7: 1.36 | M7: 4.47 | N7: 1.37 | O7: 1.99
A8: Feb | B8: =+B7 -> 0 | C8: 0.86 | D8: 5.04 | E8: =+E7 -> 10 | F8: 0.88 | G8: 2.32 | K8: Feb | L8: 1.25 | M8: 5.04 | N8: 1.26 | O8: 2.32
A9: Mar | B9: =+B8 -> 0 | C9: 0.99 | D9: 6.91 | E9: =+E8 -> 10 | F9: 0.99 | G9: 2.45 | K9: Mar | L9: 1.38 | M9: 6.91 | N9: 1.38 | O9: 2.45 | Q9: Whole Installation table A5:G18:
A10: Apr | B10: 0 | C10: 0.78 | D10: 6.38 | E10: 10 | F10: 0.78 | G10: 2.01 | K10: Apr | L10: 0.89 | M10: 6.38 | N10: 0.89 | O10: 2.01 | Q10: Mean: for 1/2 hourly and daily periods calculate mean of values across all operational combustion lines for the month
A11: May | B11: 0 | C11: 1 | D11: 4.63 | E11: 10 | F11: 0.97 | G11: 3.22 | K11: May | L11: 0.83 | M11: 3.68 | N11: 0.82 | O11: 1.73
A12: Jun | B12: 0 | C12: 0.76 | D12: 2.46 | E12: 10 | F12: 0.76 | G12: 1.3 | K12: Jun | L12: 0.72 | M12: 2.46 | N12: 0.72 | O12: 1.3
A13: Jul | B13: 0 | C13: 0.45 | D13: 2.9 | E13: 10 | F13: 0.45 | G13: 1.01 | K13: Jul | L13: 0.58 | M13: 2.9 | N13: 0.57 | O13: 1.01 | Q13: Maximum: for 1/2 hourly and daily periods use the highest value across all operational combustion lines for the month
A14: Aug | B14: 0 | C14: 0.33 | D14: 2.4 | E14: 10 | F14: 0.32 | G14: 0.86 | K14: Aug | L14: 0.45 | M14: 2.4 | N14: 0.44 | O14: 0.86
A15: Sep | B15: 0 | C15: 0.41 | D15: 3.84 | E15: 10 | F15: 0.41 | G15: 1.69 | K15: Sep | L15: 0.51 | M15: 3.84 | N15: 0.51 | O15: 1.69
A16: Oct | B16: 0 | C16: 0.7 | D16: 3.5 | E16: 10 | F16: 0.68 | G16: 1.34 | K16: Oct | L16: 0.93 | M16: 3.5 | N16: 0.91 | O16: 1.34
A17: Nov | B17: 0 | C17: 0.72 | D17: 3.79 | E17: 10 | F17: 0.72 | G17: 1.66 | K17: Nov | L17: 1.07 | M17: 3.79 | N17: 1.07 | O17: 1.66
A18: Dec | B18: 0 | C18: 0.58 | D18: 3.43 | E18: 10 | F18: 0.58 | G18: 1.75 | K18: Dec | L18: 0.9 | M18: 3.43 | N18: 0.9 | O18: 1.75
K19: Annual | L19: =AVERAGE(L7:L18) -> 0.9058333333 | M19: =MAX(M7:M18) -> 6.91 | N19: =AVERAGE(N7:N18) -> 0.9033333333 | O19: =MAX(O7:O18) -> 2.45
J21: =+A6 -> 2021 | K21: mg/Nm3 | L21: Monthly 1/2 hourly mean | M21: Monthly 1/2 hourly maximum | N21: Monthly daily mean | O21: Monthly daily maximum
J22: A2 | K22: Jan | L22: 0.39 | M22: 2.22 | N22: 0.36 | O22: 0.92
K23: Feb | L23: 0.41 | M23: 1.93 | N23: 0.42 | O23: 0.74
K24: Mar | L24: 0.57 | M24: 3.96 | N24: 0.53 | O24: 1.13
K25: Apr | L25: 0.53 | M25: 2.27 | N25: 0.53 | O25: 0.86
K26: May | L26: 1.18 | M26: 4.63 | N26: 1.13 | O26: 3.22
K27: Jun | L27: 0.79 | M27: 2.24 | N27: 0.79 | O27: 1.2
K28: Jul | L28: 0.33 | M28: 2.18 | N28: 0.33 | O28: 0.63
K29: Aug | L29: 0.24 | M29: 0.96 | N29: 0.24 | O29: 0.38
K30: Sep | L30: 0.32 | M30: 1.29 | N30: 0.32 | O30: 0.54
K31: Oct | L31: 0.46 | M31: 1.77 | N31: 0.45 | O31: 0.81
K32: Nov | L32: 0.43 | M32: 2.14 | N32: 0.42 | O32: 1.18
K33: Dec | L33: 0.26 | M33: 0.81 | N33: 0.26 | O33: 0.45
K34: Annual | L34: =AVERAGE(L22:L33) -> 0.4925 | M34: =MAX(M22:M33) -> 4.63 | N34: =AVERAGE(N22:N33) -> 0.4816666667 | O34: =MAX(O22:O33) -> 3.22
A48: Comments :
A49: An indicated ELV value of zero in the table above means that no ammonia limit is set in the permit.
C53: 21.01.2022

Sheet N2O
A1: =+'[2]Cover Page'!$B$29 -> Annual Performance Report 2021 | E1: =+'[2]Cover Page'!$B$33 -> Kemsley Generating Station
A3: Monitoring of Sulphur dioxide emissions | D3: Whole Installation | G3: See Notes in Cell Q3 | J3: =+A3 -> Monitoring of Sulphur dioxide emissions | N3: Per Combustion Line | Q3: Notes:
Q4: User to add logic to complete Whole installation, Table A5:G18. From the data in Per Combustion Line, Table J6:O79, subject to No. of lines installed
A5: mg/Nm3 | B5: 1/2 Hourly Reference Periods | E5: Daily Reference Periods
A6: =+'[2]Cover Page'!C39 -> 2021 | B6: 1/2 hourly SO2 ELV | C6: Monthly 1/2 hourly mean | D6: Highest 1/2 hourly maximum | E6: Daily SO2 ELV | F6: Monthly daily mean | G6: Highest daily maximum | J6: =+A6 -> 2021 | K6: mg/Nm3 | L6: Monthly 1/2 hourly mean | M6: Monthly 1/2 hourly maximum | N6: Monthly daily mean | O6: Monthly daily maximum
A7: Jan | B7: 0 | C7: 0.91 | D7: 87 | E7: 0 | F7: 9.545454545 | G7: 12 | J7: A1 | K7: Jan | L7: 11 | M7: 23 | N7: 11 | O7: 12
A8: Feb | B8: =+B7 -> 0 | C8: 0.86 | D8: 22 | E8: =+E7 -> 0 | F8: 8.935 | G8: 13 | K8: Feb | L8: 11 | M8: 19 | N8: 10.92 | O8: 13
A9: Mar | B9: =+B8 -> 0 | C9: 0.99 | D9: 48 | E9: =+E8 -> 0 | F9: 9.011904762 | G9: 13 | K9: Mar | L9: 11 | M9: 36 | N9: 11.10714286 | O9: 13 | Q9: Whole Installation table A5:G18:
A10: Apr | B10: 0 | C10: 0.78 | D10: 18 | E10: 0 | F10: 8.354166667 | G10: 12 | K10: Apr | L10: 10 | M10: 18 | N10: 9.833333333 | O10: 12 | Q10: Mean: for 1/2 hourly and daily periods calculate mean of values across all operational combustion lines for the month
A11: May | B11: 0 | C11: 1 | D11: 25 | E11: 0 | F11: 8.805555556 | G11: 11 | K11: May | L11: 7 | M11: 25 | N11: 7.611111111 | O11: 11
A12: Jun | B12: 0 | C12: 0.76 | D12: 25 | E12: 0 | F12: 8.443678161 | G12: 11 | K12: Jun | L12: 8 | M12: 24 | N12: 8.266666667 | O12: 10
A13: Jul | B13: 0 | C13: 0.45 | D13: 17 | E13: 0 | F13: 7.52955665 | G13: 10 | K13: Jul | L13: 8 | M13: 17 | N13: 7.714285714 | O13: 10 | Q13: Maximum: for 1/2 hourly and daily periods use the highest value across all operational combustion lines for the month
A14: Aug | B14: 0 | C14: 0.33 | D14: 17 | E14: 0 | F14: 8.000701262 | G14: 12 | K14: Aug | L14: 9 | M14: 17 | N14: 9.130434783 | O14: 12
A15: Sep | B15: 0 | C15: 0.41 | D15: 20 | E15: 0 | F15: 8.266666667 | G15: 11 | K15: Sep | L15: 10 | M15: 20 | N15: 9.566666667 | O15: 11
A16: Oct | B16: 0 | C16: 0.7 | D16: 21 | E16: 0 | F16: 9.476495726 | G16: 14 | K16: Oct | L16: 12 | M16: 21 | N16: 11.22222222 | O16: 14
A17: Nov | B17: 0 | C17: 0.72 | D17: 21 | E17: 0 | F17: 10.41433566 | G17: 15 | K17: Nov | L17: 13 | M17: 21 | N17: 13.13636364 | O17: 15
A18: Dec | B18: 0 | C18: 0.58 | D18: 21 | E18: 0 | F18: 7.532258065 | G18: 14 | K18: Dec | L18: 9 | M18: 21 | N18: 9 | O18: 14
K19: Annual | L19: 9.916666667 | M19: 36 | N19: 9.875685583 | O19: 15
J21: =+A6 -> 2021 | K21: mg/Nm3 | L21: Monthly 1/2 hourly mean | M21: Monthly 1/2 hourly maximum | N21: Monthly daily mean | O21: Monthly daily maximum
J22: A2 | K22: Jan | L22: 8 | M22: 87 | N22: 8.090909091 | O22: 11
K23: Feb | L23: 7 | M23: 22 | N23: 6.95 | O23: 9
K24: Mar | L24: 7 | M24: 48 | N24: 6.916666667 | O24: 9
K25: Apr | L25: 7 | M25: 15 | N25: 6.875 | O25: 8
K26: May | L26: 10 | M26: 17 | N26: 10 | O26: 12
K27: Jun | L27: 9 | M27: 25 | N27: 8.620689655 | O27: 11
K28: Jul | L28: 7 | M28: 15 | N28: 7.344827586 | O28: 8
K29: Aug | L29: 7 | M29: 16 | N29: 6.870967742 | O29: 9
K30: Sep | L30: 7 | M30: 14 | N30: 6.966666667 | O30: 8
K31: Oct | L31: 8 | M31: 16 | N31: 7.730769231 | O31: 9
K32: Nov | L32: 8 | M32: 25 | N32: 7.692307692 | O32: 10
K33: Dec | L33: 6 | M33: 13 | N33: 6.064516129 | O33: 8
K34: Annual | L34: 7.583333333 | M34: 87 | N34: 7.510276705 | O34: 12
A48: Comments :
A49: No N2O limit is set in the permit.
